Workbook

Sheet Lashings
B1: Lashing Calculator | O1: =I46 -> Top-over lashing | AC1: CARING | AD1: Top-over lashing | AS1: Loop lashing | BH1: Spring lashing | BW1: Straight lashing
AC2: Based on EN 12195-1
B3: Transport route | O3: Sliding | T3: Tipping | AC3: Ver 1.2 - 2013-08-23
C5: Road | O5: ="Cargo weight in ton prevented from sliding by each " & J46 &"." -> Cargo weight in ton prevented from sliding by each top-over lashing. | T5: ="Cargo weight in ton prevented from tipping by each " & J46 &"." -> Cargo weight in ton prevented from tipping by each top-over lashing.
C6: Rail | F6: Lashing angles | K6: Transport route | AD6: Sliding | AI6: Tipping | AS6: Sliding | AX6: Tipping | BH6: Sliding | BM6: Tipping | BW6: Sliding | CB6: Tipping | CL6: Lashing angles and lashing point
C7: Sea A | F7: Top over | G7: min | H7: max | AE7: 1 | AF7: 2 | AG7: 3 | AJ7: 6 | AK7: 7 | AL7: 8 | AM7: 9 | AN7: 10 | AP7: 12 | AQ7: 13 | CM7: Min | CS7: Min
C8: Sea B | F8: a | G8: 75 | H8: 90 | I8: deg | K8: TRUE | L8: =C5 -> Road | O8: µ | P8: =$K$17 -> Sideways | Q8: =$K$18 -> Forward | R8: =$K$19 -> Rearwards | U8: 1 | V8: 2 | W8: 3 | X8: 4 | Y8: 5 | AD8: µ | AE8: =$K$17 -> Sideways | AF8: =$K$18 -> Forward | AG8: =$K$19 -> Rearwards | AJ8: 1 | AK8: 2 | AL8: 3 | AM8: 4 | AN8: 5 | AS8: µ | AT8: =$K$17 -> Sideways | AU8: =$K$18 -> Forward | AV8: =$K$19 -> Rearwards | AY8: 1 | AZ8: 2 | BA8: 3 | BB8: 4 | BC8: 5 | BH8: µ | BI8: =$K$17 -> Sideways | BJ8: =$K$18 -> Forward | BK8: =$K$19 -> Rearwards | BN8: 1 | BO8: 2 | BP8: 3 | BQ8: 4 | BR8: 5 | BW8: µ | BX8: =$K$17 -> Sideways | BY8: =$K$18 -> Forward | BZ8: =$K$19 -> Rearwards | CC8: 1 | CD8: 2 | CE8: 3 | CF8: 4 | CG8: 5 | CM8: 1 | CN8: 2 | CO8: 3 | CP8: 4 | CQ8: 5
C9: Sea C | F9: b | G9: 0 | H9: 0 | I9: deg | K9: FALSE | L9: =C6 -> Rail | N9: 1 | O9: 0 | P9: =IF(P29<0,INDEX($AE$9:$BZ$25,$N9,VLOOKUP($I$46,$I$42:$K$45,3,FALSE)*15+AE$7),FIXED(INDEX($AE$9:$BZ$25,$N9,VLOOKUP($I$46,$I$42:$K$45,3,FALSE)*15+AE$7),P29)) -> 0,00 | Q9: =IF(Q29<0,INDEX($AE$9:$BZ$25,$N9,VLOOKUP($I$46,$I$42:$K$45,3,FALSE)*15+AF$7),FIXED(INDEX($AE$9:$BZ$25,$N9,VLOOKUP($I$46,$I$42:$K$45,3,FALSE)*15+AF$7),Q29)) -> 0,00 | R9: 0,00 | T9: H/B | U9: =$K$20 -> row | V9: =$K$21 -> rows | W9: =$K$21 -> rows | X9: rows | Y9: rows | Z9: H/L | AA9: =$K$18 -> Forward | AB9: =$K$19 -> Rearwards | AD9: 0 | AE9: =IF(COUNT(AE29,AE49,AE69,AE89,AE109)>0,MIN(AE29,AE49,AE69,AE89,AE109),$K$15) -> 0 | AF9: 0 | AG9: 0 | AI9: H/B | AJ9: =$K$20 -> row | AK9: =$K$21 -> rows | AL9: =$K$21 -> rows | AM9: rows | AN9: rows | AO9: H/L | AP9: =$K$18 -> Forward | AQ9: =$K$19 -> Rearwards | AS9: 0 | AT9: =IF(COUNT(AT29,AT49,AT69,AT89,AT109)>0,MIN(AT29,AT49,AT69,AT89,AT109),$K$15) -> 4.077471967 | AU9: - | AV9: - | AX9: H/B | AY9: =$K$20 -> row | AZ9: =$K$21 -> rows | BA9: =$K$21 -> rows | BB9: rows | BC9: rows | BD9: H/L | BE9: =$K$18 -> Forward | BF9: =$K$19 -> Rearwards | BH9: 0 | BI9: - | BJ9: =IF(COUNT(BJ29,BJ49,BJ69,BJ89,BJ109)>0,MIN(BJ29,BJ49,BJ69,BJ89,BJ109),$K$15) -> 3.604010098 | BK9: 5.766416156 | BM9: H/B | BN9: =$K$20 -> row | BO9: =$K$21 -> rows | BP9: =$K$21 -> rows | BQ9: rows | BR9: rows | BS9: H/L | BT9: =$K$18 -> Forward | BU9: =$K$19 -> Rearwards | BW9: 0 | BX9: =IF(COUNT(BX29,BX49,BX69,BX89,BX109)>0,MIN(BX29,BX49,BX69,BX89,BX109),$K$15) -> 1.019367992 | BY9: 0.6371049949 | BZ9: 1.019367992 | CB9: H/B | CC9: =$K$20 -> row | CD9: =$K$21 -> rows | CE9: =$K$21 -> rows | CF9: rows | CG9: rows | CH9: H/L | CI9: =$K$18 -> Forward | CJ9: =$K$19 -> Rearwards | CL9: H/B | CM9: =$K$20 -> row | CN9: =$K$21 -> rows | CO9: =$K$21 -> rows | CP9: rows | CQ9: rows | CR9: H/L | CS9: =$K$18 -> Forward | CT9: =$K$19 -> Rearwards
K10: FALSE | L10: =C7 -> Sea A | N10: 2 | O10: 0.05 | P10: =IF(P30<0,INDEX($AE$9:$BZ$25,$N10,VLOOKUP($I$46,$I$42:$K$45,3,FALSE)*15+AE$7),FIXED(INDEX($AE$9:$BZ$25,$N10,VLOOKUP($I$46,$I$42:$K$45,3,FALSE)*15+AE$7),P30)) -> 0,08 | Q10: 0,04 | R10: 0,08 | T10: 0.6 | U10: =IF(U30<0,INDEX($AE$9:$CJ$25,$N10,VLOOKUP($I$46,$I$42:$K$45,3,FALSE)*15+AJ$7),FIXED(INDEX($AE$9:$CJ$25,$N10,VLOOKUP($I$46,$I$42:$K$45,3,FALSE)*15+AJ$7),U30)) -> no tip | V10: =IF(V30<0,INDEX($AE$9:$CJ$25,$N10,VLOOKUP($I$46,$I$42:$K$45,3,FALSE)*15+AK$7),FIXED(INDEX($AE$9:$CJ$25,$N10,VLOOKUP($I$46,$I$42:$K$45,3,FALSE)*15+AK$7),V30)) -> no tip | W10: no tip | X10: 6,4 | Y10: 2,9 | Z10: 0.6 | AA10: =IF(AA30<0,INDEX($AE$9:$CJ$25,$N10,VLOOKUP($I$46,$I$42:$K$45,3,FALSE)*15+AP$7),FIXED(INDEX($AE$9:$CJ$25,$N10,VLOOKUP($I$46,$I$42:$K$45,3,FALSE)*15+AP$7),AA30)) -> no tip | AB10: =IF(AB30<0,INDEX($AE$9:$CJ$25,$N10,VLOOKUP($I$46,$I$42:$K$45,3,FALSE)*15+AQ$7),FIXED(INDEX($AE$9:$CJ$25,$N10,VLOOKUP($I$46,$I$42:$K$45,3,FALSE)*15+AQ$7),AB30)) -> no tip | AD10: 0.05 | AE10: 0.07956637332 | AF10: 0.04201104511 | AG10: 0.07956637332 | AI10: 0.6 | AJ10: =IF(COUNT(AJ30,AJ50,AJ70,AJ90,AJ110)>0,MIN(AJ30,AJ50,AJ70,AJ90,AJ110),$K$16) -> no tip | AK10: no tip | AL10: no tip | AM10: 6.360581323 | AN10: 2.914911799 | AO10: 0.6 | AP10: =IF(COUNT(AP30,AP50,AP70,AP90,AP110)>0,MIN(AP30,AP50,AP70,AP90,AP110),$K$16) -> no tip | AQ10: no tip | AS10: 0.05 | AT10: 4.57338072 | AU10: - | AV10: - | AX10: 0.6 | AY10: =IF(COUNT(AY30,AY50,AY70,AY90,AY110)>0,MIN(AY30,AY50,AY70,AY90,AY110),$K$16) -> no tip | AZ10: no tip | BA10: no tip | BB10: 8.108609026 | BC10: 5.096839959 | BD10: 0.5 | BE10: - | BF10: - | BH10: 0.05 | BI10: - | BJ10: 3.923053615 | BK10: 6.46773704 | BM10: 0.6 | BN10: - | BO10: - | BP10: - | BQ10: - | BR10: - | BS10: 0.6 | BT10: =IF(COUNT(BT30,BT50,BT70,BT90,BT110)>0,MIN(BT30,BT50,BT70,BT90,BT110),$K$16) -> no tip | BU10: no tip | BW10: 0.05 | BX10: 1.245175977 | BY10: 0.7552706743 | BZ10: 1.245175977 | CB10: 0.6 | CC10: =IF(COUNT(CC30,CC50,CC70,CC90,CC110)>0,MIN(CC30,CC50,CC70,CC90,CC110),$K$16) -> no tip | CD10: - | CE10: - | CF10: - | CG10: - | CH10: 0.6 | CI10: =IF(COUNT(CI30,CI50,CI70,CI90,CI110)>0,MIN(CI30,CI50,CI70,CI90,CI110),$K$16) -> no tip | CJ10: no tip | CL10: 0.6 | CM10: =MIN(CM28,CM46,CM64,CM82) -> 0.4 | CR10: 0.6 | CS10: =MIN(CS28,CS46,CS64,CS82) -> 0.4 | CT10: 0.4
B11: Lashing equipment | F11: Loop lashing | K11: FALSE | L11: =C8 -> Sea B | N11: 3 | O11: 0.1 | P11: 0,18 | Q11: 0,09 | R11: 0,18 | T11: 0.8 | U11: =IF(U31<0,INDEX($AE$9:$CJ$25,$N11,VLOOKUP($I$46,$I$42:$K$45,3,FALSE)*15+AJ$7),FIXED(INDEX($AE$9:$CJ$25,$N11,VLOOKUP($I$46,$I$42:$K$45,3,FALSE)*15+AJ$7),U31)) -> no tip | V11: no tip | W11: 5,4 | X11: 2,1 | Y11: 1,5 | Z11: 0.8 | AA11: =IF(AA31<0,INDEX($AE$9:$CJ$25,$N11,VLOOKUP($I$46,$I$42:$K$45,3,FALSE)*15+AP$7),FIXED(INDEX($AE$9:$CJ$25,$N11,VLOOKUP($I$46,$I$42:$K$45,3,FALSE)*15+AP$7),AA31)) -> no tip | AB11: no tip | AD11: 0.1 | AE11: 0.17902434 | AF11: 0.0900236681 | AG11: 0.17902434 | AI11: 0.8 | AJ11: no tip | AK11: no tip | AL11: 5.433883148 | AM11: 2.120193774 | AN11: 1.457455899 | AO11: 0.8 | AP11: no tip | AQ11: no tip | AS11: 0.1 | AT11: 5.156802782 | AU11: - | AV11: - | AX11: 0.8 | AY11: no tip | AZ11: no tip | BA11: 6.950236308 | BB11: 3.878030404 | BC11: 2.912479977 | BD11: 0.8 | BE11: - | BF11: - | BH11: 0.1 | BI11: - | BJ11: 4.275101633 | BK11: 7.292820433 | BM11: 0.8 | BN11: - | BO11: - | BP11: - | BQ11: - | BR11: - | BS11: 0.8 | BT11: no tip | BU11: no tip | BW11: 0.1 | BX11: 1.510832429 | BY11: 0.8856603896 | BZ11: 1.510832429 | CB11: 0.8 | CC11: no tip | CD11: - | CE11: - | CF11: - | CG11: - | CH11: 0.8 | CI11: no tip | CJ11: no tip | CL11: 0.8 | CM11: =MIN(CM29,CM47,CM65,CM83) -> 0.45 | CR11: 0.8 | CS11: 0.45 | CT11: 0.45
F12: a | G12: 0 | H12: 90 | I12: deg | K12: FALSE | L12: =C9 -> Sea C | N12: 4 | O12: 0.15 | P12: 0,31 | Q12: 0,15 | R12: 0,31 | T12: 1 | U12: no tip | V12: no tip | W12: 2,2 | X12: 1,3 | Y12: 0,97 | Z12: 1 | AA12: no tip | AB12: no tip | AD12: 0.15 | AE12: 0.3068988685 | AF12: 0.1454228485 | AG12: 0.3068988685 | AI12: 1 | AJ12: no tip | AK12: no tip | AL12: 2.173553259 | AM12: 1.272116265 | AN12: 0.9716372663 | AO12: 1 | AP12: no tip | AQ12: no tip | AS12: 0.15 | AT12: 5.853145243 | AU12: - | AV12: - | AX12: 1 | AY12: no tip | AZ12: no tip | BA12: 3.822629969 | BB12: 2.54841998 | BC12: 2.038735984 | BD12: 1 | BE12: - | BF12: - | BH12: 0.15 | BI12: - | BJ12: 4.66555489 | BK12: 8.277597386 | BM12: 1 | BN12: - | BO12: - | BP12: - | BQ12: - | BR12: - | BS12: 1 | BT12: no tip | BU12: no tip | BW12: 0.15 | BX12: 1.82790626 | BY12: 1.030274437 | BZ12: 1.82790626 | CB12: 1 | CC12: no tip | CD12: - | CE12: - | CF12: - | CG12: - | CH12: 1 | CI12: no tip | CJ12: no tip | CL12: 1 | CM12: =MIN(CM30,CM48,CM66,CM84) -> 0.5 | CR12: 1 | CS12: 0.5 | CT12: 0.5
B13: LC | C13: 2000 | D13: daN | F13: b | G13: 0 | H13: 0 | I13: deg | N13: 5 | O13: 0.2 | P13: 0,48 | Q13: 0,21 | R13: 0,48 | T13: 1.2 | U13: no tip | V13: 4,5 | W13: 1,4 | X13: 0,91 | Y13: 0,73 | Z13: 1.2 | AA13: no tip | AB13: no tip | AD13: 0.2 | AE13: 0.4773982399 | AF13: 0.2100552256 | AG13: 0.4773982399 | AI13: 1.2 | AJ13: no tip | AK13: 4.507184974 | AL13: 1.358470787 | AM13: 0.9086544746 | AN13: 0.7287279497 | AO13: 1.2 | AP13: no tip | AQ13: no tip | AS13: 0.2 | AT13: 6.698703946 | AU13: - | AV13: - | AX13: 1.2 | AY13: no tip | AZ13: 5.79186359 | BA13: 2.636296531 | BB13: 1.897759559 | BC13: 1.568258449 | BD13: 1.2 | BE13: - | BF13: - | BH13: 0.2 | BI13: - | BJ13: 5.101060446 | BK13: 9.473397971 | BM13: 1.2 | BN13: - | BO13: - | BP13: - | BQ13: - | BR13: - | BS13: 1.2 | BT13: no tip | BU13: no tip | BW13: 0.2 | BX13: 2.212924483 | BY13: 1.191574721 | BZ13: 2.212924483 | CB13: 1.2 | CC13: no tip | CD13: - | CE13: - | CF13: - | CG13: - | CH13: 1.2 | CI13: no tip | CJ13: no tip | CL13: 1.2 | CM13: =MIN(CM31,CM49,CM67,CM85) -> 0.55 | CR13: 1.2 | CS13: =MIN(CS31,CS49,CS67,CS85) -> 0.55 | CT13: 0.55
B14: STF | C14: 400 | D14: daN | K14: Expressions | N14: 6 | O14: 0.25 | P14: 0,72 | Q14: 0,29 | R14: 0,72 | T14: 1.4 | U14: no tip | V14: 2,3 | W14: 0,99 | X14: 0,71 | Y14: 0,58 | Z14: 1.4 | AA14: 5,3 | AB14: no tip | AD14: 0.25 | AE14: 0.7160973599 | AF14: 0.2864389439 | AG14: 0.7160973599 | AI14: 1.4 | AJ14: no tip | AK14: 2.253592487 | AL14: 0.9879787542 | AM14: 0.7067312581 | AN14: 0.5829823598 | AO14: 1.4 | AP14: 5.251380639 | AQ14: no tip | AS14: 0.25 | AT14: 7.747196738 | AU14: - | AV14: - | AX14: 1.4 | AY14: no tip | AZ14: 3.747676441 | BA14: 2.01191051 | BB14: 1.511774564 | BC14: 1.27420999 | BD14: 1.4 | BE14: - | BF14: - | BH14: 0.25 | BI14: - | BJ14: 5.589893213 | BK14: 10.9561907 | BM14: 1.4 | BN14: - | BO14: - | BP14: - | BQ14: - | BR14: - | BS14: 1.4 | BT14: 67.27485516 | BU14: no tip | BW14: 0.25 | BX14: 2.690347079 | BY14: 1.372626061 | BZ14: 2.690347079 | CB14: 1.4 | CC14: no tip | CD14: - | CE14: - | CF14: - | CG14: - | CH14: 1.4 | CI14: 10.19367992 | CJ14: no tip | CL14: 1.4 | CM14: 0.6 | CR14: 1.4 | CS14: 0.6 | CT14: 0.6
F15: Spring lashing | K15: no slide | N15: 7 | O15: 0.3 | P15: 1,1 | Q15: 0,38 | R15: 1,1 | T15: 1.6 | U15: no tip | V15: 1,5 | W15: 0,78 | X15: 0,58 | Y15: 0,49 | Z15: 1.6 | AA15: 2,3 | AB15: no tip | AD15: 0.3 | AE15: 1.07414604 | AF15: 0.378099406 | AG15: 1.07414604 | AI15: 1.6 | AJ15: no tip | AK15: 1.502394991 | AL15: 0.7762690212 | AM15: 0.5782346657 | AN15: 0.4858186331 | AO15: 1.6 | AP15: 2.250591702 | AQ15: no tip | AS15: 0.3 | AT15: 9.081642109 | AU15: - | AV15: - | AX15: 1.6 | AY15: no tip | AZ15: 2.770021717 | BA15: 1.626651051 | BB15: 1.25626337 | BC15: 1.073018939 | BD15: 1.6 | BE15: - | BF15: - | BH15: 0.3 | BI15: - | BJ15: 6.142486775 | BK15: 12.84338144 | BM15: 1.6 | BN15: - | BO15: - | BP15: - | BQ15: - | BR15: - | BS15: 1.6 | BT15: 32.95094947 | BU15: no tip | BW15: 0.3 | BX15: 3.297975838 | BY15: 1.577292792 | BZ15: 3.297975838 | CB15: 1.6 | CC15: no tip | CD15: - | CE15: - | CF15: - | CG15: - | CH15: 1.6 | CI15: 4.732779962 | CJ15: no tip | CL15: 1.6 | CM15: 0.65 | CR15: 1.6 | CS15: 0.65 | CT15: 0.65
F16: a | G16: 0 | H16: 45 | I16: deg | K16: no tip | N16: 8 | O16: 0.35 | P16: 1,7 | Q16: 0,49 | R16: 1,7 | T16: 1.8 | U16: no tip | V16: 1,1 | W16: 0,64 | X16: 0,49 | Y16: 0,42 | Z16: 1.8 | AA16: 1,4 | AB16: no tip | AD16: 0.35 | AE16: 1.67089384 | AF16: 0.4901288596 | AG16: 1.67089384 | AI16: 1.8 | AJ16: no tip | AK16: 1.126796243 | AL16: 0.6392803704 | AM16: 0.4892754863 | AN16: 0.4164159713 | AO16: 1.8 | AP16: 1.43219472 | AQ16: no tip | AS16: 0.35 | AT16: 10.83749128 | AU16: - | AV16: - | AX16: 1.8 | AY16: no tip | AZ16: 2.196913776 | BA16: 1.365224989 | BB16: 1.074634931 | BC16: 0.9266981744 | BD16: 1.8 | BE16: - | BF16: - | BH16: 0.35 | BI16: - | BJ16: 6.772186416 | BK16: 15.32652715 | BM16: 1.8 | BN16: - | BO16: - | BP16: - | BQ16: - | BR16: - | BS16: 1.8 | BT16: 23.58988428 | BU16: no tip | BW16: 0.35 | BX16: 4.097487363 | BY16: 1.810517672 | BZ16: 4.097487363 | CB16: 1.8 | CC16: no tip | CD16: - | CE16: - | CF16: - | CG16: - | CH16: 1.8 | CI16: 3.24344361 | CJ16: no tip | CL16: 1.8 | CM16: 0.7 | CR16: 1.8 | CS16: 0.7 | CT16: 0.7
B17: Lashing point | F17: b | G17: 90 | H17: 90 | I17: deg | K17: Sideways | N17: 9 | O17: 0.4 | P17: 2,9 | Q17: 0,63 | R17: 2,9 | T17: 2 | U17: no tip | V17: 0,90 | W17: 0,54 | X17: 0,42 | Y17: 0,36 | Z17: 2 | AA17: 1,1 | AB17: no tip | AD17: 0.4 | AE17: 2.864389439 | AF17: 0.6301656767 | AG17: 2.864389439 | AI17: 2 | AJ17: no tip | AK17: 0.9014369947 | AL17: 0.5433883148 | AM17: 0.4240387548 | AN17: 0.3643639748 | AO17: 2 | AP17: 1.050276128 | AQ17: no tip | AS17: 0.4 | AT17: 13.25178389 | AU17: - | AV17: - | AX17: 2 | AY17: no tip | AZ17: 1.820299985 | BA17: 1.176193837 | BB17: 0.9388915714 | BC17: 0.8154943935 | BD17: 2 | BE17: - | BF17: - | BH17: 0.4 | BI17: - | BJ17: 7.496341003 | BK17: 18.74085251 | BM17: 2 | BN17: - | BO17: - | BP17: - | BQ17: - | BR17: - | BS17: 2 | BT17: 19.22138719 | BU17: no tip | BW17: 0.4 | BX17: 5.19681571 | BY17: 2.078726284 | BZ17: 5.19681571 | CB17: 2 | CC17: no tip | CD17: - | CE17: - | CF17: - | CG17: - | CH17: 2 | CI17: 2.54841998 | CJ17: no tip | CL17: 2 | CM17: 0.75 | CR17: 2 | CS17: 0.75 | CT17: 0.75
K18: Forward | N18: 10 | O18: 0.45 | P18: 6,4 | Q18: 0,81 | R18: 6,4 | T18: 2.2 | U18: 5,6 | V18: 0,75 | W18: 0,47 | X18: 0,37 | Y18: 0,32 | Z18: 2.2 | AA18: 0,83 | AB18: 7,2 | AD18: 0.45 | AE18: 6.444876239 | AF18: 0.8102130129 | AG18: 6.444876239 | AI18: 2.2 | AJ18: 5.594510624 | AK18: 0.7511974956 | AL18: 0.4725115781 | AM18: 0.3741518425 | AN18: 0.3238790888 | AO18: 2.2 | AP18: 0.8291653641 | AQ18: 7.160973599 | AS18: 0.45 | AT18: 16.7803654 | AU18: - | AV18: - | AX18: 2.2 | AY18: 6.371049949 | AZ18: 1.553914622 | BA18: 1.033143235 | BB18: 0.8335953204 | BC18: 0.7281199942 | BD18: 2.2 | BE18: - | BF18: - | BH18: 0.45 | BI18: - | BJ18: 8.337926064 | BK18: 23.73102034 | BM18: 2.2 | BN18: - | BO18: - | BP18: - | BQ18: - | BR18: - | BS18: 2.2 | BT18: 16.6922573 | BU18: 126.8611554 | BW18: 0.45 | BX18: 6.803526371 | BY18: 2.390428184 | BZ18: 6.803526371 | CB18: 2.2 | CC18: 5.096839959 | CD18: - | CE18: - | CF18: - | CG18: - | CH18: 2.2 | CI18: 2.146037878 | CJ18: 16.30988787 | CL18: 2.2 | CM18: 0.8 | CR18: 2.2 | CS18: 0.8 | CT18: 0.8
B19: LC | C19: 2000 | D19: daN | F19: Straight lashing | K19: Rearwards | N19: 11 | O19: 0.5 | P19: no slide | Q19: 1,1 | R19: no slide | T19: 2.4 | U19: 3,6 | V19: 0,64 | W19: 0,42 | X19: 0,33 | Y19: 0,29 | Z19: 2.4 | AA19: 0,68 | AB19: 3,6 | AD19: 0.5 | AE19: no slide | AF19: 1.050276128 | AG19: no slide | AI19: 2.4 | AJ19: 3.580486799 | AK19: 0.6438835677 | AL19: 0.4179910114 | AM19: 0.334767438 | AN19: 0.2914911799 | AO19: 2.4 | AP19: 0.684962692 | AQ19: 3.580486799 | AS19: 0.5 | AT19: no slide | AU19: - | AV19: - | AX19: 2.4 | AY19: 4.633490872 | AZ19: 1.355542542 | BA19: 0.9211156553 | BB19: 0.7495352881 | BC19: 0.6576567689 | BD19: 2.4 | BE19: - | BF19: - | BH19: 0.5 | BI19: - | BJ19: 9.328026135 | BK19: no slide | BM19: 2.4 | BN19: - | BO19: - | BP19: - | BQ19: - | BR19: - | BS19: 2.4 | BT19: 15.04282476 | BU19: 69.19699388 | BW19: 0.5 | BX19: no slide | BY19: 2.757136302 | BZ19: no slide | CB19: 2.4 | CC19: 3.938467241 | CD19: - | CE19: - | CF19: - | CG19: - | CH19: 2.4 | CI19: 1.883614768 | CJ19: 8.664627931 | CL19: 2.4 | CM19: 0.85 | CR19: 2.4 | CS19: 0.85 | CT19: 0.85
F20: a | G20: 30 | H20: 60 | I20: deg | K20: row | N20: 12 | O20: 0.55 | P20: no slide | Q20: 1,4 | R20: no slide | T20: 2.6 | U20: 2,4 | V20: 0,56 | W20: 0,37 | X20: 0,30 | Y20: 0,26 | Z20: 2.6 | AA20: 0,58 | AB20: 2,4 | AD20: 0.55 | AE20: no slide | AF20: 1.386364489 | AG20: no slide | AI20: 2.6 | AJ20: 2.3869912 | AK20: 0.5633981217 | AL20: 0.3747505619 | AM20: 0.3028848249 | AN20: 0.2649919817 | AO20: 2.6 | AP20: 0.5834867377 | AQ20: 2.3869912 | AS20: 0.55 | AT20: no slide | AU20: - | AV20: - | AX20: 2.6 | AY20: 3.640599971 | AZ20: 1.202084896 | BA20: 0.8310065151 | BB20: 0.6808755671 | BC20: 0.5996282305 | BD20: 2.6 | BE20: - | BF20: - | BH20: 0.55 | BI20: - | BJ20: 10.50975848 | BK20: no slide | BM20: 2.6 | BN20: - | BO20: - | BP20: - | BQ20: - | BR20: - | BS20: 2.6 | BT20: 13.88211297 | BU20: 49.97560669 | BW20: 0.55 | BX20: no slide | BY20: 3.194820185 | BZ20: no slide | CB20: 2.6 | CC20: 3.276539974 | CD20: - | CE20: - | CF20: - | CG20: - | CH20: 2.6 | CI20: 1.698946653 | CJ20: 6.116207951 | CL20: 2.6 | CM20: 0.9 | CR20: 2.6 | CS20: 0.9 | CT20: 0.9
F21: b | G21: 30 | H21: 60 | I21: deg | K21: rows | N21: 13 | O21: 0.6 | P21: no slide | Q21: 1,9 | R21: no slide | T21: 2.8 | U21: 1,8 | V21: 0,50 | W21: 0,34 | X21: 0,28 | Y21: 0,24 | Z21: 2.8 | AA21: 0,51 | AB21: 1,8 | AD21: 0.6 | AE21: no slide | AF21: 1.89049703 | AG21: no slide | AI21: 2.8 | AJ21: 1.7902434 | AK21: 0.5007983304 | AL21: 0.3396176968 | AM21: 0.276547014 | AN21: 0.2429093166 | AO21: 2.8 | AP21: 0.5081981264 | AQ21: 1.7902434 | AS21: 0.6 | AT21: no slide | AU21: - | AV21: - | AX21: 2.8 | AY21: 2.998141152 | AZ21: 1.079838974 | BA21: 0.7569564296 | BB21: 0.6237391558 | BC21: 0.5510097253 | BD21: 2.8 | BE21: - | BF21: - | BH21: 0.6 | BI21: - | BJ21: 11.64991991 | BK21: no slide | BM21: 2.8 | BN21: - | BO21: - | BP21: - | BQ21: - | BR21: - | BS21: 2.8 | BT21: 13.02093971 | BU21: 40.3649131 | BW21: 0.6 | BX21: no slide | BY21: 3.726293471 | BZ21: no slide | CB21: 2.8 | CC21: 2.848234095 | CD21: - | CE21: - | CF21: - | CG21: - | CH21: 2.8 | CI21: 1.561934826 | CJ21: 4.841997961 | CL21: 2.8 | CM21: 0.95 | CR21: 2.8 | CS21: 0.95 | CT21: 0.95
B22: Lashing type | K22: Smooth | N22: 14 | O22: 0.65 | P22: no slide | Q22: 2,7 | R22: no slide | T22: 3 | U22: 1,4 | V22: 0,45 | W22: 0,31 | X22: 0,25 | Y22: 0,22 | Z22: 3 | AA22: 0,45 | AB22: 1,4 | AD22: 0.65 | AE22: no slide | AF22: 2.730717932 | AG22: no slide | AI22: 3 | AJ22: 1.43219472 | AK22: 0.4507184974 | AL22: 0.3105076085 | AM22: 0.2544232529 | AN22: 0.2242239845 | AO22: 3 | AP22: 0.4501183405 | AQ22: 1.43219472 | AS22: 0.65 | AT22: no slide | AU22: - | AV22: - | AX22: 3 | AY22: 2.54841998 | AZ22: 0.9801615306 | BA22: 0.6950236308 | BB22: 0.5754496728 | BC22: 0.5096839959 | BD22: 3 | BE22: - | BF22: - | BH22: 0.65 | BI22: - | BJ22: 13.0479103 | BK22: no slide | BM22: 3 | BN22: - | BO22: - | BP22: - | BQ22: - | BR22: - | BS22: 3 | BT22: 12.35660605 | BU22: 34.59849694 | BW22: 0.65 | BX22: no slide | BY22: 4.385320346 | BZ22: no slide | CB22: 3 | CC22: 2.54841998 | CD22: - | CE22: - | CF22: - | CG22: - | CH22: 3 | CI22: 1.456239988 | CJ22: 4.077471967 | CL22: 3 | CM22: 1 | CR22: 3 | CS22: 1 | CT22: 1
F23: Parameters | K23: Galvanized | N23: 15 | O23: 0.7 | P23: no slide | Q23: 4,4 | R23: no slide | T23: 3.2 | U23: 1,2 | V23: 0,41 | W23: 0,29 | X23: 0,24 | Y23: 0,21 | Z23: 3.2 | AA23: 0,40 | AB23: 1,2 | AD23: 0.7 | AE23: no slide | AF23: 4.411159737 | AG23: no slide | AI23: 3.2 | AJ23: 1.1934956 | AK23: 0.4097440885 | AL23: 0.2859938499 | AM23: 0.235577086 | AN23: 0.2082079856 | AO23: 3.2 | AP23: 0.4039523568 | AQ23: 1.1934956 | AS23: 0.7 | AT23: no slide | AU23: - | AV23: - | AX23: 3.2 | AY23: 2.216017374 | AZ23: 0.8973309787 | BA23: 0.6424588184 | BB23: 0.5340999957 | BC23: 0.4741246474 | BD23: 3.2 | BE23: - | BF23: - | BH23: 0.7 | BI23: - | BJ23: 14.82717079 | BK23: no slide | BM23: 3.2 | BN23: - | BO23: - | BP23: - | BQ23: - | BR23: - | BS23: 3.2 | BT23: 11.82854596 | BU23: 30.7542195 | BW23: 0.7 | BX23: no slide | BY23: 5.156242809 | BZ23: no slide | CB23: 3.2 | CC23: 2.326818242 | CD23: - | CE23: - | CF23: - | CG23: - | CH23: 3.2 | CI23: 1.372226143 | CJ23: 3.567787971 | CL23: 3.2 | CM23: 1.05 | CR23: 3.2 | CS23: 1.05 | CT23: 1.05
F24: Safetyfactor fs | G24: sideways & rearwards | I24: 1.1 | N24: 16 | O24: 0.75 | P24: no slide | Q24: 9,5 | R24: no slide | AD24: 0.75 | AE24: no slide | AF24: 9.45248515 | AG24: no slide | AS24: 0.75 | AT24: no slide | AU24: - | AV24: - | BH24: 0.75 | BI24: - | BJ24: 17.16830302 | BK24: no slide | BW24: 0.75 | BX24: no slide | BY24: 6.131339251 | BZ24: no slide
G25: forward, road | I25: 1.25 | N25: 17 | O25: 0.8 | P25: no slide | Q25: =IF(Q45<0,INDEX($AE$9:$BZ$25,$N25,VLOOKUP($I$46,$I$42:$K$45,3,FALSE)*15+AF$7),FIXED(INDEX($AE$9:$BZ$25,$N25,VLOOKUP($I$46,$I$42:$K$45,3,FALSE)*15+AF$7),Q45)) -> no slide | R25: =IF(R45<0,INDEX($AE$9:$BZ$25,$N25,VLOOKUP($I$46,$I$42:$K$45,3,FALSE)*15+AG$7),FIXED(INDEX($AE$9:$BZ$25,$N25,VLOOKUP($I$46,$I$42:$K$45,3,FALSE)*15+AG$7),R45)) -> no slide | AD25: 0.8 | AE25: no slide | AF25: no slide | AG25: no slide | AS25: 0.8 | AT25: no slide | AU25: - | AV25: - | BH25: 0.8 | BI25: - | BJ25: no slide | BK25: no slide | BW25: 0.8 | BX25: no slide | BY25: no slide | BZ25: no slide | CM25: amax, bmax, Case I | CS25: amax, bmin, Case I
G26: forward, other | I26: 1.1 | CM26: 1 | CN26: 2 | CO26: 3 | CP26: 4 | CQ26: 5
F27: Internal friction | I27: 0.25 | AC27: Developed by MariTerm AB | AD27: =$F$35 -> Road | AI27: =$L$8 -> Road | AJ27: cy=0.5 | AK27: FT=STF | AN27: cy=0.6 | AO27: FT=0.5 LC | AS27: =$F$35 -> Road | AX27: =$L$8 -> Road | BH27: =$F$35 -> Road | BM27: =$L$8 -> Road | BW27: =$F$35 -> Road | CB27: =$L$8 -> Road | CL27: H/B | CM27: =$K$20 -> row | CN27: =$K$21 -> rows | CO27: =$K$21 -> rows | CP27: rows | CQ27: rows | CR27: H/L | CS27: =$K$18 -> Forward | CT27: =$K$19 -> Rearwards
F28: Conversion factor friction | I28: 0.75 | O28: µ | P28: =$K$17 -> Sideways | Q28: =$K$18 -> Forward | R28: =$K$19 -> Rearwards | U28: 1 | V28: 2 | W28: 3 | X28: 4 | Y28: 5 | AD28: µ | AE28: =$K$17 -> Sideways | AF28: =$K$18 -> Forward | AG28: =$K$19 -> Rearwards | AJ28: 1 | AK28: 2 | AL28: 3 | AM28: 4 | AN28: 5 | AS28: µ | AT28: =$K$17 -> Sideways | AU28: =$K$18 -> Forward | AV28: =$K$19 -> Rearwards | AY28: 1 | AZ28: 2 | BA28: 3 | BB28: 4 | BC28: 5 | BH28: µ | BI28: =$K$17 -> Sideways | BJ28: =$K$18 -> Forward | BK28: =$K$19 -> Rearwards | BN28: 1 | BO28: 2 | BP28: 3 | BQ28: 4 | BR28: 5 | BW28: µ | BX28: =$K$17 -> Sideways | BY28: =$K$18 -> Forward | BZ28: =$K$19 -> Rearwards | CC28: 1 | CD28: 2 | CE28: 3 | CF28: 4 | CG28: 5 | CL28: 0.6 | CM28: =COS($H$20*PI()/180)*COS($H$21*PI()/180)*($CL28+1) -> 0.4 | CR28: 0.6 | CS28: =COS($H$20*PI()/180)*SIN($G$21*PI()/180)*($CR28+1) -> 0.4 | CT28: 0.4
F29: Wankfactor | G29: road - tipping sideways | I29: 0.1 | O29: 0 | P29: =IF(TYPE(INDEX($AE$9:$BZ$25,$N9,VLOOKUP($I$46,$I$42:$K$45,3,FALSE)*15+AE$7))=2,-1,IF(INDEX($AE$9:$BZ$25,$N9,VLOOKUP($I$46,$I$42:$K$45,3,FALSE)*15+AE$7)>10,0,IF(INDEX($AE$9:$BZ$25,$N9,VLOOKUP($I$46,$I$42:$K$45,3,FALSE)*15+AE$7)>1,1,2))) -> 2 | Q29: =IF(TYPE(INDEX($AE$9:$BZ$25,$N9,VLOOKUP($I$46,$I$42:$K$45,3,FALSE)*15+AF$7))=2,-1,IF(INDEX($AE$9:$BZ$25,$N9,VLOOKUP($I$46,$I$42:$K$45,3,FALSE)*15+AF$7)>10,0,IF(INDEX($AE$9:$BZ$25,$N9,VLOOKUP($I$46,$I$42:$K$45,3,FALSE)*15+AF$7)>1,1,2))) -> 2 | R29: =IF(TYPE(INDEX($AE$9:$BZ$25,$N9,VLOOKUP($I$46,$I$42:$K$45,3,FALSE)*15+AG$7))=2,-1,IF(INDEX($AE$9:$BZ$25,$N9,VLOOKUP($I$46,$I$42:$K$45,3,FALSE)*15+AG$7)>10,0,IF(INDEX($AE$9:$BZ$25,$N9,VLOOKUP($I$46,$I$42:$K$45,3,FALSE)*15+AG$7)>1,1,2))) -> 2 | T29: H/B | U29: =$K$20 -> row | V29: =$K$21 -> rows | W29: =$K$21 -> rows | X29: rows | Y29: rows | Z29: H/L | AA29: =$K$18 -> Forward | AB29: =$K$19 -> Rearwards | AD29: 0 | AE29: =IF($K$8,IF(($K$35-$AD29*$L$35)>0,$I$51*2*$AD29*SIN($G$8*PI()/180)/(($K$35-$AD29*$L$35)*$I$24),""),"") -> 0 | AF29: =IF($K$8,IF(($G$35-$AD29*$H$35)>0,$I$51*2*$AD29*SIN($G$8*PI()/180)/(($G$35-$AD29*$H$35)*$I$25),""),"") -> 0 | AG29: =IF($K$8,IF(($I$35-$AD29*$J$35)>0,$I$51*2*$AD29*SIN($G$8*PI()/180)/(($I$35-$AD29*$J$35)*$I$24),""),"") -> 0 | AI29: H/B | AJ29: =$K$20 -> row | AK29: =$K$21 -> rows | AL29: =$K$21 -> rows | AM29: rows | AN29: rows | AO29: H/L | AP29: =$K$18 -> Forward | AQ29: =$K$19 -> Rearwards | AS29: 0 | AT29: =IF($K$8,IF(($K$35-$AS29*$L$35)>0,$I$49*((1+COS($H$12*PI()/180))*COS($H$13*PI()/180)+$I$28*$AS29*SIN($H$12*PI()/180))/(($K$35-$L$35*$I$28*$AS29)),""),"") -> 4.077471967 | AX29: H/B | AY29: =$K$20 -> row | AZ29: =$K$21 -> rows | BA29: =$K$21 -> rows | BB29: rows | BC29: rows | BD29: H/L | BE29: =$K$18 -> Forward | BF29: =$K$19 -> Rearwards | BH29: 0 | BJ29: =IF($K$8,IF(($G$35-$BH29*$H$35)>0,$I$49*2*MIN($I$28*$BH29*SIN($G$16*PI()/180)+COS($G$16*PI()/180)*SIN($G$17*PI()/180),$I$28*$BH29*SIN($H$16*PI()/180)+COS($H$16*PI()/180)*SIN($G$17*PI()/180))/($G$35-$AD29*$H$35*$I$28),""),"") -> 3.604010098 | BK29: =IF($K$8,IF(($I$35-$BH29*$J$35)>0,$I$49*2*MIN($I$28*$BH29*SIN($G$16*PI()/180)+COS($G$16*PI()/180)*SIN($G$17*PI()/180),$I$28*$BH29*SIN($H$16*PI()/180)+COS($H$16*PI()/180)*SIN($G$17*PI()/180))/($I$35-$AD29*$J$35*$I$28),""),"") -> 5.766416156 | BM29: H/B | BN29: =$K$20 -> row | BO29: =$K$21 -> rows | BP29: =$K$21 -> rows | BQ29: rows | BR29: rows | BS29: H/L | BT29: =$K$18 -> Forward | BU29: =$K$19 -> Rearwards | BW29: 0 | BX29: =IF($K$8,IF(($K$35-$BW29*$L$35)>0,$I$49*MIN(COS($G$20*PI()/180)*COS($H$21*PI()/180)+$BW29*$I$28*SIN($G$20*PI()/180),COS($H$20*PI()/180)*COS($H$21*PI()/180)+$BW29*$I$28*SIN($H$20*PI()/180))/($K$35-$BW29*$I$28*$L$35),""),"") -> 1.019367992 | BY29: =IF($K$8,IF(($G$35-$BW29*$H$35)>0,$I$49*MIN(COS($G$20*PI()/180)*SIN($G$21*PI()/180)+$BW29*$I$28*SIN($G$20*PI()/180),COS($H$20*PI()/180)*SIN($G$21*PI()/180)+$BW29*$I$28*SIN($H$20*PI()/180))/($G$35-$BW29*$I$28*$H$35),""),"") -> 0.6371049949 | BZ29: =IF($K$8,IF(($I$35-$BW29*$J$35)>0,$I$49*MIN(COS($G$20*PI()/180)*SIN($G$21*PI()/180)+$BW29*$I$28*SIN($G$20*PI()/180),COS($H$20*PI()/180)*SIN($G$21*PI()/180)+$BW29*$I$28*SIN($H$20*PI()/180))/($I$35-$BW29*$I$28*$J$35),""),"") -> 1.019367992 | CB29: H/B | CC29: =$K$20 -> row | CD29: =$K$21 -> rows | CE29: =$K$21 -> rows | CF29: rows | CG29: rows | CH29: H/L | CI29: =$K$18 -> Forward | CJ29: =$K$19 -> Rearwards | CL29: 0.8 | CM29: 0.45 | CR29: 0.8 | CS29: 0.45 | CT29: 0.45
F30: Shakefactor | G30: rail - sliding sideways | I30: 0.3 | O30: 0.05 | P30: 2 | Q30: 2 | R30: 2 | T30: 0.6 | U30: =IF(TYPE(INDEX($AE$9:$CJ$25,$N10,VLOOKUP($I$46,$I$42:$K$45,3,FALSE)*15+AJ$7))=2,-1,IF(INDEX($AE$9:$CJ$25,$N10,VLOOKUP($I$46,$I$42:$K$45,3,FALSE)*15+AJ$7)>10,0,IF(INDEX($AE$9:$CJ$25,$N10,VLOOKUP($I$46,$I$42:$K$45,3,FALSE)*15+AJ$7)>1,1,2))) -> -1 | V30: =IF(TYPE(INDEX($AE$9:$CJ$25,$N10,VLOOKUP($I$46,$I$42:$K$45,3,FALSE)*15+AK$7))=2,-1,IF(INDEX($AE$9:$CJ$25,$N10,VLOOKUP($I$46,$I$42:$K$45,3,FALSE)*15+AK$7)>10,0,IF(INDEX($AE$9:$CJ$25,$N10,VLOOKUP($I$46,$I$42:$K$45,3,FALSE)*15+AK$7)>1,1,2))) -> -1 | W30: =IF(TYPE(INDEX($AE$9:$CJ$25,$N10,VLOOKUP($I$46,$I$42:$K$45,3,FALSE)*15+AL$7))=2,-1,IF(INDEX($AE$9:$CJ$25,$N10,VLOOKUP($I$46,$I$42:$K$45,3,FALSE)*15+AL$7)>10,0,IF(INDEX($AE$9:$CJ$25,$N10,VLOOKUP($I$46,$I$42:$K$45,3,FALSE)*15+AL$7)>1,1,2))) -> -1 | X30: =IF(TYPE(INDEX($AE$9:$CJ$25,$N10,VLOOKUP($I$46,$I$42:$K$45,3,FALSE)*15+AM$7))=2,-1,IF(INDEX($AE$9:$CJ$25,$N10,VLOOKUP($I$46,$I$42:$K$45,3,FALSE)*15+AM$7)>10,0,IF(INDEX($AE$9:$CJ$25,$N10,VLOOKUP($I$46,$I$42:$K$45,3,FALSE)*15+AM$7)>1,1,2))) -> 1 | Y30: =IF(TYPE(INDEX($AE$9:$CJ$25,$N10,VLOOKUP($I$46,$I$42:$K$45,3,FALSE)*15+AN$7))=2,-1,IF(INDEX($AE$9:$CJ$25,$N10,VLOOKUP($I$46,$I$42:$K$45,3,FALSE)*15+AN$7)>10,0,IF(INDEX($AE$9:$CJ$25,$N10,VLOOKUP($I$46,$I$42:$K$45,3,FALSE)*15+AN$7)>1,1,2))) -> 1 | Z30: 0.6 | AA30: =IF(TYPE(INDEX($AE$9:$CJ$25,$N10,VLOOKUP($I$46,$I$42:$K$45,3,FALSE)*15+AP$7))=2,-1,IF(INDEX($AE$9:$CJ$25,$N10,VLOOKUP($I$46,$I$42:$K$45,3,FALSE)*15+AP$7)>10,0,IF(INDEX($AE$9:$CJ$25,$N10,VLOOKUP($I$46,$I$42:$K$45,3,FALSE)*15+AP$7)>1,1,2))) -> -1 | AB30: =IF(TYPE(INDEX($AE$9:$CJ$25,$N10,VLOOKUP($I$46,$I$42:$K$45,3,FALSE)*15+AQ$7))=2,-1,IF(INDEX($AE$9:$CJ$25,$N10,VLOOKUP($I$46,$I$42:$K$45,3,FALSE)*15+AQ$7)>10,0,IF(INDEX($AE$9:$CJ$25,$N10,VLOOKUP($I$46,$I$42:$K$45,3,FALSE)*15+AQ$7)>1,1,2))) -> -1 | AD30: 0.05 | AE30: 0.07956637332 | AF30: 0.04201104511 | AG30: 0.07956637332 | AI30: 0.6 | AJ30: =IF($K$8,IF($AI30>($L$35/$K$35)/AJ$28,(2*(SIN($G$8*PI()/180)+$I$27*(AJ$28-1)))/($I$24)*MIN($I$51/($K$35*$AI30*AJ$28-$L$35),$I$50/(($K$35+$I$29)*$AI30*AJ$28-$L$35)),""),"") ->  | AM30: 6.360581323 | AN30: 2.914911799 | AO30: 0.6 | AP30: =IF($K$8,IF($AO30>($H$35/$G$35),2*$I$51*SIN($G$8*PI()/180)/($I$25*($G$35*$AO30-$H$35)),""),"") ->  | AQ30: =IF($K$8,IF($AO30>($J$35/$I$35),2*$I$51*SIN($G$8*PI()/180)/($I$24*($I$35*$AO30-$J$35)),""),"") ->  | AS30: 0.05 | AT30: 4.57338072 | AX30: 0.6 | AY30: =IF($K$8,IF($AX30>($L$35/$K$35)/AY$28,2*$I$50*($I$27*(AY$28-1)+MIN(SIN($G$12*PI()/180)+AY$28*$AX30*COS($G$12*PI()/180)*COS($H$13*PI()/180),SIN($H$12*PI()/180)+AY$28*$AX30*COS($H$12*PI()/180)*COS($H$13*PI()/180)))/(($K$35+$I$29)*$AX30*AY$28-$L$35),""),"") ->  | BB30: 8.108609026 | BC30: 5.096839959 | BD30: 0.5 | BH30: 0.05 | BJ30: 3.923053615 | BK30: 6.46773704 | BM30: 0.6 | BS30: 0.6 | BT30: =IF($K$8,IF($AO30>($H$35/$G$35),4*$I$49*COS($H$16*PI()/180)*SIN($G$17*PI()/180)*$BS30/($G$35*$BS30-$H$35),""),"") ->  | BU30: =IF($K$8,IF($AO30>($J$35/$I$35),4*$I$49*COS($H$16*PI()/180)*SIN($G$17*PI()/180)*$BS30/($I$35*$BS30-$J$35),""),"") ->  | BW30: 0.05 | BX30: 1.245175977 | BY30: 0.7552706743 | BZ30: 1.245175977 | CB30: 0.6 | CC30: =IF($K$8,IF($CB30>($L$35/$K$35)/CC$28,$I$49*CM10/(($K$35+$I$29)*$CB30-$L$35),""),"") ->  | CH30: 0.6 | CI30: =IF($K$8,IF($CH30>($H$35/$G$35),$I$49*CS10/($G$35*$CH30-$H$35),""),"") ->  | CJ30: =IF($K$8,IF($CH30>($J$35/$I$35),$I$49*CT10/($I$35*$CH30-$J$35),""),"") ->  | CL30: 1 | CM30: 0.5 | CR30: 1 | CS30: 0.5 | CT30: 0.5
F31: Tippfactor | G31: rail - tippping fwd/rwd | I31: -0.4 | O31: 0.1 | P31: 2 | Q31: 2 | R31: 2 | T31: 0.8 | U31: -1 | V31: -1 | W31: 1 | X31: 1 | Y31: 1 | Z31: 0.8 | AA31: -1 | AB31: -1 | AD31: 0.1 | AE31: 0.17902434 | AF31: 0.0900236681 | AG31: 0.17902434 | AI31: 0.8 | AL31: 5.433883148 | AM31: 2.120193774 | AN31: 1.457455899 | AO31: 0.8 | AS31: 0.1 | AT31: 5.156802782 | AX31: 0.8 | BA31: 6.950236308 | BB31: 3.878030404 | BC31: 2.912479977 | BD31: 0.8 | BH31: 0.1 | BJ31: 4.275101633 | BK31: 7.292820433 | BM31: 0.8 | BS31: 0.8 | BW31: 0.1 | BX31: 1.510832429 | BY31: 0.8856603896 | BZ31: 1.510832429 | CB31: 0.8 | CH31: 0.8 | CL31: 1.2 | CM31: 0.55 | CR31: 1.2 | CS31: 0.55 | CT31: 0.55
O32: 0.15 | P32: 2 | Q32: 2 | R32: 2 | T32: 1 | U32: -1 | V32: -1 | W32: 1 | X32: 1 | Y32: 2 | Z32: 1 | AA32: -1 | AB32: -1 | AD32: 0.15 | AE32: 0.3068988685 | AF32: 0.1454228485 | AG32: 0.3068988685 | AI32: 1 | AL32: 2.173553259 | AM32: 1.272116265 | AN32: 0.9716372663 | AO32: 1 | AS32: 0.15 | AT32: 5.853145243 | AX32: 1 | BA32: 3.822629969 | BB32: 2.54841998 | BC32: 2.038735984 | BD32: 1 | BH32: 0.15 | BJ32: 4.66555489 | BK32: 8.277597386 | BM32: 1 | BS32: 1 | BW32: 0.15 | BX32: 1.82790626 | BY32: 1.030274437 | BZ32: 1.82790626 | CB32: 1 | CH32: 1 | CL32: 1.4 | CM32: 0.6 | CR32: 1.4 | CS32: 0.6 | CT32: 0.6
F33: Accelerations | O33: 0.2 | P33: 2 | Q33: 2 | R33: 2 | T33: 1.2 | U33: -1 | V33: 1 | W33: 1 | X33: 2 | Y33: 2 | Z33: 1.2 | AA33: -1 | AB33: -1 | AD33: 0.2 | AE33: 0.4773982399 | AF33: 0.2100552256 | AG33: 0.4773982399 | AI33: 1.2 | AK33: 4.507184974 | AL33: 1.358470787 | AM33: 0.9086544746 | AN33: 0.7287279497 | AO33: 1.2 | AS33: 0.2 | AT33: 6.698703946 | AX33: 1.2 | AZ33: 5.79186359 | BA33: 2.636296531 | BB33: 1.897759559 | BC33: 1.568258449 | BD33: 1.2 | BH33: 0.2 | BJ33: 5.101060446 | BK33: 9.473397971 | BM33: 1.2 | BS33: 1.2 | BW33: 0.2 | BX33: 2.212924483 | BY33: 1.191574721 | BZ33: 2.212924483 | CB33: 1.2 | CH33: 1.2 | CL33: 1.6 | CM33: 0.65 | CR33: 1.6 | CS33: 0.65 | CT33: 0.65
G34: Forward | I34: Rearwards | K34: Sideways | O34: 0.25 | P34: 2 | Q34: 2 | R34: 2 | T34: 1.4 | U34: -1 | V34: 1 | W34: 2 | X34: 2 | Y34: 2 | Z34: 1.4 | AA34: 1 | AB34: -1 | AD34: 0.25 | AE34: 0.7160973599 | AF34: 0.2864389439 | AG34: 0.7160973599 | AI34: 1.4 | AK34: 2.253592487 | AL34: 0.9879787542 | AM34: 0.7067312581 | AN34: 0.5829823598 | AO34: 1.4 | AP34: 5.251380639 | AS34: 0.25 | AT34: 7.747196738 | AX34: 1.4 | AZ34: 3.747676441 | BA34: 2.01191051 | BB34: 1.511774564 | BC34: 1.27420999 | BD34: 1.4 | BH34: 0.25 | BJ34: 5.589893213 | BK34: 10.9561907 | BM34: 1.4 | BS34: 1.4 | BT34: 67.27485516 | BW34: 0.25 | BX34: 2.690347079 | BY34: 1.372626061 | BZ34: 2.690347079 | CB34: 1.4 | CH34: 1.4 | CI34: 10.19367992 | CL34: 1.8 | CM34: 0.7 | CR34: 1.8 | CS34: 0.7 | CT34: 0.7
F35: Road | G35: 0.8 | H35: 1 | I35: 0.5 | J35: 1 | K35: 0.5 | L35: 1 | O35: 0.3 | P35: 1 | Q35: 2 | R35: 1 | T35: 1.6 | U35: -1 | V35: 1 | W35: 2 | X35: 2 | Y35: 2 | Z35: 1.6 | AA35: 1 | AB35: -1 | AD35: 0.3 | AE35: 1.07414604 | AF35: 0.378099406 | AG35: 1.07414604 | AI35: 1.6 | AK35: 1.502394991 | AL35: 0.7762690212 | AM35: 0.5782346657 | AN35: 0.4858186331 | AO35: 1.6 | AP35: 2.250591702 | AS35: 0.3 | AT35: 9.081642109 | AX35: 1.6 | AZ35: 2.770021717 | BA35: 1.626651051 | BB35: 1.25626337 | BC35: 1.073018939 | BD35: 1.6 | BH35: 0.3 | BJ35: 6.142486775 | BK35: 12.84338144 | BM35: 1.6 | BS35: 1.6 | BT35: 32.95094947 | BW35: 0.3 | BX35: 3.297975838 | BY35: 1.577292792 | BZ35: 3.297975838 | CB35: 1.6 | CH35: 1.6 | CI35: 4.732779962 | CL35: 2 | CM35: 0.75 | CR35: 2 | CS35: 0.75 | CT35: 0.75
F36: Rail | G36: 1 | H36: 1 | I36: 1 | J36: 1 | K36: 0.5 | L36: 1 | O36: 0.35 | P36: 1 | Q36: 2 | R36: 1 | T36: 1.8 | U36: -1 | V36: 1 | W36: 2 | X36: 2 | Y36: 2 | Z36: 1.8 | AA36: 1 | AB36: -1 | AD36: 0.35 | AE36: 1.67089384 | AF36: 0.4901288596 | AG36: 1.67089384 | AI36: 1.8 | AK36: 1.126796243 | AL36: 0.6392803704 | AM36: 0.4892754863 | AN36: 0.4164159713 | AO36: 1.8 | AP36: 1.43219472 | AS36: 0.35 | AT36: 10.83749128 | AX36: 1.8 | AZ36: 2.196913776 | BA36: 1.365224989 | BB36: 1.074634931 | BC36: 0.9266981744 | BD36: 1.8 | BH36: 0.35 | BJ36: 6.772186416 | BK36: 15.32652715 | BM36: 1.8 | BS36: 1.8 | BT36: 23.58988428 | BW36: 0.35 | BX36: 4.097487363 | BY36: 1.810517672 | BZ36: 4.097487363 | CB36: 1.8 | CH36: 1.8 | CI36: 3.24344361 | CL36: 2.2 | CM36: 0.8 | CR36: 2.2 | CS36: 0.8 | CT36: 0.8
F37: Sea A | G37: 0.3 | H37: 0.5 | I37: 0.3 | J37: 0.5 | K37: 0.5 | L37: 1 | O37: 0.4 | P37: 1 | Q37: 2 | R37: 1 | T37: 2 | U37: -1 | V37: 2 | W37: 2 | X37: 2 | Y37: 2 | Z37: 2 | AA37: 1 | AB37: -1 | AD37: 0.4 | AE37: 2.864389439 | AF37: 0.6301656767 | AG37: 2.864389439 | AI37: 2 | AK37: 0.9014369947 | AL37: 0.5433883148 | AM37: 0.4240387548 | AN37: 0.3643639748 | AO37: 2 | AP37: 1.050276128 | AS37: 0.4 | AT37: 13.25178389 | AX37: 2 | AZ37: 1.820299985 | BA37: 1.176193837 | BB37: 0.9388915714 | BC37: 0.8154943935 | BD37: 2 | BH37: 0.4 | BJ37: 7.496341003 | BK37: 18.74085251 | BM37: 2 | BS37: 2 | BT37: 19.22138719 | BW37: 0.4 | BX37: 5.19681571 | BY37: 2.078726284 | BZ37: 5.19681571 | CB37: 2 | CH37: 2 | CI37: 2.54841998 | CL37: 2.4 | CM37: 0.85 | CR37: 2.4 | CS37: 0.85 | CT37: 0.85
F38: Sea B | G38: 0.3 | H38: 0.3 | I38: 0.3 | J38: 0.3 | K38: 0.7 | L38: 1 | O38: 0.45 | P38: 1 | Q38: 2 | R38: 1 | T38: 2.2 | U38: 1 | V38: 2 | W38: 2 | X38: 2 | Y38: 2 | Z38: 2.2 | AA38: 2 | AB38: 1 | AD38: 0.45 | AE38: 6.444876239 | AF38: 0.8102130129 | AG38: 6.444876239 | AI38: 2.2 | AJ38: 5.594510624 | AK38: 0.7511974956 | AL38: 0.4725115781 | AM38: 0.3741518425 | AN38: 0.3238790888 | AO38: 2.2 | AP38: 0.8291653641 | AQ38: 7.160973599 | AS38: 0.45 | AT38: 16.7803654 | AX38: 2.2 | AY38: 6.371049949 | AZ38: 1.553914622 | BA38: 1.033143235 | BB38: 0.8335953204 | BC38: 0.7281199942 | BD38: 2.2 | BH38: 0.45 | BJ38: 8.337926064 | BK38: 23.73102034 | BM38: 2.2 | BS38: 2.2 | BT38: 16.6922573 | BU38: 126.8611554 | BW38: 0.45 | BX38: 6.803526371 | BY38: 2.390428184 | BZ38: 6.803526371 | CB38: 2.2 | CC38: 5.096839959 | CH38: 2.2 | CI38: 2.146037878 | CJ38: 16.30988787 | CL38: 2.6 | CM38: 0.9 | CR38: 2.6 | CS38: 0.9 | CT38: 0.9
F39: Sea C | G39: 0.4 | H39: 0.2 | I39: 0.4 | J39: 0.2 | K39: 0.8 | L39: 1 | O39: 0.5 | P39: -1 | Q39: 1 | R39: -1 | T39: 2.4 | U39: 1 | V39: 2 | W39: 2 | X39: 2 | Y39: 2 | Z39: 2.4 | AA39: 2 | AB39: 1 | AD39: 0.5 | AF39: 1.050276128 | AI39: 2.4 | AJ39: 3.580486799 | AK39: 0.6438835677 | AL39: 0.4179910114 | AM39: 0.334767438 | AN39: 0.2914911799 | AO39: 2.4 | AP39: 0.684962692 | AQ39: 3.580486799 | AS39: 0.5 | AX39: 2.4 | AY39: 4.633490872 | AZ39: 1.355542542 | BA39: 0.9211156553 | BB39: 0.7495352881 | BC39: 0.6576567689 | BD39: 2.4 | BH39: 0.5 | BJ39: 9.328026135 | BM39: 2.4 | BS39: 2.4 | BT39: 15.04282476 | BU39: 69.19699388 | BW39: 0.5 | BY39: 2.757136302 | CB39: 2.4 | CC39: 3.938467241 | CH39: 2.4 | CI39: 1.883614768 | CJ39: 8.664627931 | CL39: 2.8 | CM39: 0.95 | CR39: 2.8 | CS39: 0.95 | CT39: 0.95
O40: 0.55 | P40: -1 | Q40: 1 | R40: -1 | T40: 2.6 | U40: 1 | V40: 2 | W40: 2 | X40: 2 | Y40: 2 | Z40: 2.6 | AA40: 2 | AB40: 1 | AD40: 0.55 | AF40: 1.386364489 | AI40: 2.6 | AJ40: 2.3869912 | AK40: 0.5633981217 | AL40: 0.3747505619 | AM40: 0.3028848249 | AN40: 0.2649919817 | AO40: 2.6 | AP40: 0.5834867377 | AQ40: 2.3869912 | AS40: 0.55 | AX40: 2.6 | AY40: 3.640599971 | AZ40: 1.202084896 | BA40: 0.8310065151 | BB40: 0.6808755671 | BC40: 0.5996282305 | BD40: 2.6 | BH40: 0.55 | BJ40: 10.50975848 | BM40: 2.6 | BS40: 2.6 | BT40: 13.88211297 | BU40: 49.97560669 | BW40: 0.55 | BY40: 3.194820185 | CB40: 2.6 | CC40: 3.276539974 | CH40: 2.6 | CI40: 1.698946653 | CJ40: 6.116207951 | CL40: 3 | CM40: 1 | CR40: 3 | CS40: 1 | CT40: 1
I41: Type | O41: 0.6 | P41: -1 | Q41: 1 | R41: -1 | T41: 2.8 | U41: 1 | V41: 2 | W41: 2 | X41: 2 | Y41: 2 | Z41: 2.8 | AA41: 2 | AB41: 1 | AD41: 0.6 | AF41: 1.89049703 | AI41: 2.8 | AJ41: 1.7902434 | AK41: 0.5007983304 | AL41: 0.3396176968 | AM41: 0.276547014 | AN41: 0.2429093166 | AO41: 2.8 | AP41: 0.5081981264 | AQ41: 1.7902434 | AS41: 0.6 | AX41: 2.8 | AY41: 2.998141152 | AZ41: 1.079838974 | BA41: 0.7569564296 | BB41: 0.6237391558 | BC41: 0.5510097253 | BD41: 2.8 | BH41: 0.6 | BJ41: 11.64991991 | BM41: 2.8 | BS41: 2.8 | BT41: 13.02093971 | BU41: 40.3649131 | BW41: 0.6 | BY41: 3.726293471 | CB41: 2.8 | CC41: 2.848234095 | CH41: 2.8 | CI41: 1.561934826 | CJ41: 4.841997961 | CL41: 3.2 | CM41: 1.05 | CR41: 3.2 | CS41: 1.05 | CT41: 1.05
I42: Top-over lashing | J42: top-over lashing | K42: 0 | O42: 0.65 | P42: -1 | Q42: 1 | R42: -1 | T42: 3 | U42: 1 | V42: 2 | W42: 2 | X42: 2 | Y42: 2 | Z42: 3 | AA42: 2 | AB42: 1 | AD42: 0.65 | AF42: 2.730717932 | AI42: 3 | AJ42: 1.43219472 | AK42: 0.4507184974 | AL42: 0.3105076085 | AM42: 0.2544232529 | AN42: 0.2242239845 | AO42: 3 | AP42: 0.4501183405 | AQ42: 1.43219472 | AS42: 0.65 | AX42: 3 | AY42: 2.54841998 | AZ42: 0.9801615306 | BA42: 0.6950236308 | BB42: 0.5754496728 | BC42: 0.5096839959 | BD42: 3 | BH42: 0.65 | BJ42: 13.0479103 | BM42: 3 | BS42: 3 | BT42: 12.35660605 | BU42: 34.59849694 | BW42: 0.65 | BY42: 4.385320346 | CB42: 3 | CC42: 2.54841998 | CH42: 3 | CI42: 1.456239988 | CJ42: 4.077471967
I43: Loop lashing | J43: pair of loop lashings | K43: 1 | O43: 0.7 | P43: -1 | Q43: 1 | R43: -1 | T43: 3.2 | U43: 1 | V43: 2 | W43: 2 | X43: 2 | Y43: 2 | Z43: 3.2 | AA43: 2 | AB43: 1 | AD43: 0.7 | AF43: 4.411159737 | AI43: 3.2 | AJ43: 1.1934956 | AK43: 0.4097440885 | AL43: 0.2859938499 | AM43: 0.235577086 | AN43: 0.2082079856 | AO43: 3.2 | AP43: 0.4039523568 | AQ43: 1.1934956 | AS43: 0.7 | AX43: 3.2 | AY43: 2.216017374 | AZ43: 0.8973309787 | BA43: 0.6424588184 | BB43: 0.5340999957 | BC43: 0.4741246474 | BD43: 3.2 | BH43: 0.7 | BJ43: 14.82717079 | BM43: 3.2 | BS43: 3.2 | BT43: 11.82854596 | BU43: 30.7542195 | BW43: 0.7 | BY43: 5.156242809 | CB43: 3.2 | CC43: 2.326818242 | CH43: 3.2 | CI43: 1.372226143 | CJ43: 3.567787971 | CM43: amax, bmax, Case 2 | CS43: amin, bmin, Case 2
I44: Spring lashing | J44: spring lashing | K44: 2 | O44: 0.75 | P44: -1 | Q44: 1 | R44: -1 | AD44: 0.75 | AF44: 9.45248515 | AS44: 0.75 | BH44: 0.75 | BJ44: 17.16830302 | BW44: 0.75 | BY44: 6.131339251 | CM44: 1 | CN44: 2 | CO44: 3 | CP44: 4 | CQ44: 5
I45: Straight lashing | J45: straight lashing | K45: 3 | O45: 0.8 | P45: -1 | Q45: -1 | R45: -1 | AD45: 0.8 | AS45: 0.8 | BH45: 0.8 | BW45: 0.8 | CL45: H/B | CM45: =$K$20 -> row | CN45: =$K$21 -> rows | CO45: =$K$21 -> rows | CP45: rows | CQ45: rows | CR45: H/L | CS45: =$K$18 -> Forward | CT45: =$K$19 -> Rearwards
I46: =INDEX(I42:I45,K46) -> Top-over lashing | J46: =VLOOKUP(I46,I42:J45,2,FALSE) -> top-over lashing | K46: 1 | CL46: 0.6 | CM46: =COS($H$20*PI()/180)*COS($H$21*PI()/180)*($CL46-1)+SIN($H$20*PI()/180)*2 -> 1.632050808 | CR46: 0.6 | CS46: =COS($H$20*PI()/180)*SIN($G$21*PI()/180)*($CR46-1)+SIN($H$20*PI()/180)*2 -> 1.632050808 | CT46: 1.632050808
AD47: =$F$36 -> Rail | AI47: =$L$9 -> Rail | AS47: =$F$36 -> Rail | AX47: =$L$9 -> Rail | BH47: =$F$36 -> Rail | BM47: =$L$9 -> Rail | BW47: =$F$36 -> Rail | CB47: =$L$9 -> Rail | CL47: 0.8 | CM47: 1.682050808 | CR47: 0.8 | CS47: 1.682050808 | CT47: 1.682050808
F48: LC to use | AD48: µ | AE48: =$K$17 -> Sideways | AF48: =$K$18 -> Forward | AG48: =$K$19 -> Rearwards | AJ48: 1 | AK48: 2 | AL48: 3 | AM48: 4 | AN48: 5 | AS48: µ | AT48: =$K$17 -> Sideways | AU48: =$K$18 -> Forward | AV48: =$K$19 -> Rearwards | AY48: 1 | AZ48: 2 | BA48: 3 | BB48: 4 | BC48: 5 | BH48: µ | BI48: =$K$17 -> Sideways | BJ48: =$K$18 -> Forward | BK48: =$K$19 -> Rearwards | BN48: 1 | BO48: 2 | BP48: 3 | BQ48: 4 | BR48: 5 | BW48: µ | BX48: =$K$17 -> Sideways | BY48: =$K$18 -> Forward | BZ48: =$K$19 -> Rearwards | CC48: 1 | CD48: 2 | CE48: 3 | CF48: 4 | CG48: 5 | CL48: 1 | CM48: 1.732050808 | CR48: 1 | CS48: 1.732050808 | CT48: 1.732050808
F49: LC | G49: =MIN(C13,C19) -> 2000 | H49: daN | I49: =G49/(100*9.81) -> 2.038735984 | J49: ton | AD49: 0 | AE49: =IF($K$9,IF(($K$36-$AD49*($L$36-$I$30))>0,$I$51*2*$AD49*SIN($G$8*PI()/180)/(($K$36-$AD49*($L$36-$I$30))*$I$24),""),"") ->  | AF49: =IF($K$9,IF(($G$36-$AD49*$H$36)>0,$I$51*2*$AD49*SIN($G$8*PI()/180)/(($G$36-$AD49*$H$36)*$I$24),""),"") ->  | AG49: =IF($K$9,IF(($I$36-$AD49*$J$36)>0,$I$51*2*$AD49*SIN($G$8*PI()/180)/(($I$36-$AD49*$J$36)*$I$24),""),"") ->  | AI49: H/B | AJ49: =$K$20 -> row | AK49: =$K$21 -> rows | AL49: =$K$21 -> rows | AM49: rows | AN49: rows | AO49: H/L | AP49: =$K$18 -> Forward | AQ49: =$K$19 -> Rearwards | AS49: 0 | AT49: =IF($K$9,IF(($K$36-$AS49*($L$36-$I$30))>0,$I$49*((1+COS($H$12*PI()/180))*COS($H$13*PI()/180)+$I$28*$AS49*SIN($H$12*PI()/180))/(($K$36-($L$36-$I$30)*$I$28*$AS49)),""),"") ->  | AX49: H/B | AY49: =$K$20 -> row | AZ49: =$K$21 -> rows | BA49: =$K$21 -> rows | BB49: rows | BC49: rows | BD49: H/L | BE49: =$K$18 -> Forward | BF49: =$K$19 -> Rearwards | BH49: 0 | BJ49: =IF($K$9,IF(($G$36-$BH49*$H$36)>0,$I$49*2*MIN($I$28*$BH49*SIN($G$16*PI()/180)+COS($G$16*PI()/180)*SIN($G$17*PI()/180),$I$28*$BH49*SIN($H$16*PI()/180)+COS($H$16*PI()/180)*SIN($G$17*PI()/180))/($G$36-$AD49*$H$36*$I$28),""),"") ->  | BK49: =IF($K$9,IF(($I$36-$BH49*$J$36)>0,$I$49*2*MIN($I$28*$BH49*SIN($G$16*PI()/180)+COS($G$16*PI()/180)*SIN($G$17*PI()/180),$I$28*$BH49*SIN($H$16*PI()/180)+COS($H$16*PI()/180)*SIN($G$17*PI()/180))/($I$36-$AD49*$J$36*$I$28),""),"") ->  | BM49: H/B | BN49: =$K$20 -> row | BO49: =$K$21 -> rows | BP49: =$K$21 -> rows | BQ49: rows | BR49: rows | BS49: H/L | BT49: =$K$18 -> Forward | BU49: =$K$19 -> Rearwards | BW49: 0 | BX49: =IF($K$9,IF(($K$36-$BW49*$L$36)>0,$I$49*MIN(COS($G$20*PI()/180)*COS($H$21*PI()/180)+$BW49*$I$28*SIN($G$20*PI()/180),COS($H$20*PI()/180)*COS($H$21*PI()/180)+$BW49*$I$28*SIN($H$20*PI()/180))/($K$36-$BW49*$I$28*($L$36-$I$30)),""),"") ->  | BY49: =IF($K$9,IF(($G$36-$BW49*$H$36)>0,$I$49*MIN(COS($G$20*PI()/180)*SIN($G$21*PI()/180)+$BW49*$I$28*SIN($G$20*PI()/180),COS($H$20*PI()/180)*SIN($G$21*PI()/180)+$BW49*$I$28*SIN($H$20*PI()/180))/($G$36-$BW49*$I$28*$H$36),""),"") ->  | BZ49: =IF($K$9,IF(($I$36-$BW49*$J$36)>0,$I$49*MIN(COS($G$20*PI()/180)*SIN($G$21*PI()/180)+$BW49*$I$28*SIN($G$20*PI()/180),COS($H$20*PI()/180)*SIN($G$21*PI()/180)+$BW49*$I$28*SIN($H$20*PI()/180))/($I$36-$BW49*$I$28*$J$36),""),"") ->  | CB49: H/B | CC49: =$K$20 -> row | CD49: =$K$21 -> rows | CE49: =$K$21 -> rows | CF49: rows | CG49: rows | CH49: H/L | CI49: =$K$18 -> Forward | CJ49: =$K$19 -> Rearwards | CL49: 1.2 | CM49: 1.782050808 | CR49: 1.2 | CS49: 1.782050808 | CT49: 1.782050808
F50: 0.5 * LC | G50: =MIN(0.5*C13,C19) -> 1000 | H50: daN | I50: =G50/(100*9.81) -> 1.019367992 | J50: ton | AD50: 0.05 | AI50: 0.6 | AJ50: =IF($K$9,IF($AI50>($L$36/$K$36)/AJ$48,2*$I$51*(SIN($G$8*PI()/180)+0.25*(AJ$48-1))/($I$24*($K$36*$AI50*AJ$48-$L$36)),""),"") ->  | AO50: 0.6 | AP50: =IF($K$9,IF($AO50>($H$36/($G$36+$I$31)),2*$I$51*SIN($G$8*PI()/180)/($I$26*(($G$36+$I$31)*$AO50-$H$36)),""),"") ->  | AQ50: =IF($K$9,IF($AO50>($J$36/($I$36+$I$31)),2*$I$51*SIN($G$8*PI()/180)/($I$24*(($I$36+$I$31)*$AO50-$J$36)),""),"") ->  | AS50: 0.05 | AX50: 0.6 | AY50: =IF($K$9,IF($AX50>($L$36/$K$36)/AY$48,$I$49*($I$27*(AY$48-1)+MIN(SIN($G$12*PI()/180)+AY$48*$AX50*COS($G$12*PI()/180)*COS($H$13*PI()/180),SIN($H$12*PI()/180)+AY$48*$AX50*COS($H$12*PI()/180)*COS($H$13*PI()/180)))/($K$36*$AX50*AY$48-$L$36),""),"") ->  | BD50: 0.6 | BH50: 0.05 | BM50: 0.6 | BS50: 0.6 | BT50: =IF($K$9,IF($AO50>($H$36/($G$36+$I$31)),4*$I$49*COS($H$16*PI()/180)*SIN($G$17*PI()/180)*$BS50/(($G$36+$I$31)*$BS50-$H$36),""),"") ->  | BU50: =IF($K$9,IF($AO50>($J$36/($I$36+$I$31)),4*$I$49*COS($H$16*PI()/180)*SIN($G$17*PI()/180)*$BS50/(($I$36+$I$31)*$BS50-$J$36),""),"") ->  | BW50: 0.05 | CB50: 0.6 | CC50: =IF($K$9,IF($CB50>($L$36/$K$36)/CC$28,$I$49*CM10/($K$36*$CB50-$L$36),""),"") ->  | CH50: 0.6 | CI50: =IF($K$9,IF($CH50>($H$36/($G$36+$I$31)),$I$49*CS10/(($G$36+$I$31)*$CH50-$H$36),""),"") ->  | CJ50: =IF($K$9,IF($CH50>($J$36/($I$36+$I$31)),$I$49*CT10/(($I$36+$I$31)*$CH50-$J$36),""),"") ->  | CL50: 1.4 | CM50: 1.832050808 | CR50: 1.4 | CS50: 1.832050808 | CT50: 1.832050808
F51: STF | G51: =MIN(C14,C19) -> 400 | H51: daN | I51: =G51/(100*9.81) -> 0.4077471967 | J51: ton | AD51: 0.1 | AI51: 0.8 | AO51: 0.8 | AS51: 0.1 | AX51: 0.8 | BD51: 0.8 | BH51: 0.1 | BM51: 0.8 | BS51: 0.8 | BW51: 0.1 | CB51: 0.8 | CH51: 0.8 | CL51: 1.6 | CM51: 1.882050808 | CR51: 1.6 | CS51: 1.882050808 | CT51: 1.882050808
AD52: 0.15 | AI52: 1 | AO52: 1 | AS52: 0.15 | AX52: 1 | BD52: 1 | BH52: 0.15 | BM52: 1 | BS52: 1 | BW52: 0.15 | CB52: 1 | CH52: 1 | CL52: 1.8 | CM52: 1.932050808 | CR52: 1.8 | CS52: 1.932050808 | CT52: 1.932050808
AD53: 0.2 | AI53: 1.2 | AO53: 1.2 | AS53: 0.2 | AX53: 1.2 | BD53: 1.2 | BH53: 0.2 | BM53: 1.2 | BS53: 1.2 | BW53: 0.2 | CB53: 1.2 | CH53: 1.2 | CL53: 2 | CM53: 1.982050808 | CR53: 2 | CS53: 1.982050808 | CT53: 1.982050808
AD54: 0.25 | AI54: 1.4 | AO54: 1.4 | AS54: 0.25 | AX54: 1.4 | BD54: 1.4 | BH54: 0.25 | BM54: 1.4 | BS54: 1.4 | BW54: 0.25 | CB54: 1.4 | CH54: 1.4 | CL54: 2.2 | CM54: 2.032050808 | CR54: 2.2 | CS54: 2.032050808 | CT54: 2.032050808
AD55: 0.3 | AI55: 1.6 | AO55: 1.6 | AS55: 0.3 | AX55: 1.6 | BD55: 1.6 | BH55: 0.3 | BM55: 1.6 | BS55: 1.6 | BW55: 0.3 | CB55: 1.6 | CH55: 1.6 | CL55: 2.4 | CM55: 2.082050808 | CR55: 2.4 | CS55: 2.082050808 | CT55: 2.082050808
AD56: 0.35 | AI56: 1.8 | AO56: 1.8 | AS56: 0.35 | AX56: 1.8 | BD56: 1.8 | BH56: 0.35 | BM56: 1.8 | BS56: 1.8 | BW56: 0.35 | CB56: 1.8 | CH56: 1.8 | CL56: 2.6 | CM56: 2.132050808 | CR56: 2.6 | CS56: 2.132050808 | CT56: 2.132050808
AD57: 0.4 | AI57: 2 | AO57: 2 | AS57: 0.4 | AX57: 2 | BD57: 2 | BH57: 0.4 | BM57: 2 | BS57: 2 | BW57: 0.4 | CB57: 2 | CH57: 2 | CL57: 2.8 | CM57: 2.182050808 | CR57: 2.8 | CS57: 2.182050808 | CT57: 2.182050808
AD58: 0.45 | AI58: 2.2 | AO58: 2.2 | AS58: 0.45 | AX58: 2.2 | BD58: 2.2 | BH58: 0.45 | BM58: 2.2 | BS58: 2.2 | BW58: 0.45 | CB58: 2.2 | CH58: 2.2 | CL58: 3 | CM58: 2.232050808 | CR58: 3 | CS58: 2.232050808 | CT58: 2.232050808
AD59: 0.5 | AI59: 2.4 | AO59: 2.4 | AS59: 0.5 | AX59: 2.4 | BD59: 2.4 | BH59: 0.5 | BM59: 2.4 | BS59: 2.4 | BW59: 0.5 | CB59: 2.4 | CH59: 2.4 | CL59: 3.2 | CM59: 2.282050808 | CR59: 3.2 | CS59: 2.282050808 | CT59: 2.282050808
AD60: 0.55 | AI60: 2.6 | AO60: 2.6 | AS60: 0.55 | AX60: 2.6 | BD60: 2.6 | BH60: 0.55 | BM60: 2.6 | BS60: 2.6 | BW60: 0.55 | CB60: 2.6 | CH60: 2.6
AD61: 0.6 | AI61: 2.8 | AO61: 2.8 | AS61: 0.6 | AX61: 2.8 | BD61: 2.8 | BH61: 0.6 | BM61: 2.8 | BS61: 2.8 | BW61: 0.6 | CB61: 2.8 | CH61: 2.8 | CM61: amin, bmax, Case 1 | CS61: amin, bmin, Case 1
AD62: 0.65 | AI62: 3 | AO62: 3 | AS62: 0.65 | AX62: 3 | BD62: 3 | BH62: 0.65 | BM62: 3 | BS62: 3 | BW62: 0.65 | CB62: 3 | CH62: 3 | CM62: 1 | CN62: 2 | CO62: 3 | CP62: 4 | CQ62: 5
AD63: 0.7 | AI63: 3.2 | AO63: 3.2 | AS63: 0.7 | AX63: 3.2 | BD63: 3.2 | BH63: 0.7 | BM63: 3.2 | BS63: 3.2 | BW63: 0.7 | CB63: 3.2 | CH63: 3.2 | CL63: H/B | CM63: =$K$20 -> row | CN63: =$K$21 -> rows | CO63: =$K$21 -> rows | CP63: rows | CQ63: rows | CR63: H/L | CS63: =$K$18 -> Forward | CT63: =$K$19 -> Rearwards
AD64: 0.75 | AS64: 0.75 | BH64: 0.75 | BW64: 0.75 | CL64: 0.6 | CM64: =COS($G$20*PI()/180)*COS($H$21*PI()/180)*($CL64+1) -> 0.692820323 | CR64: 0.6 | CS64: =COS($G$20*PI()/180)*SIN($G$21*PI()/180)*($CR64+1) -> 0.692820323 | CT64: 0.692820323
AD65: 0.8 | AS65: 0.8 | BH65: 0.8 | BW65: 0.8 | CL65: 0.8 | CM65: 0.7794228634 | CR65: 0.8 | CS65: 0.7794228634 | CT65: 0.7794228634
CL66: 1 | CM66: 0.8660254038 | CR66: 1 | CS66: 0.8660254038 | CT66: 0.8660254038
AD67: =$L$10 -> Sea A | AI67: =$L$10 -> Sea A | AS67: =$L$10 -> Sea A | AX67: =$L$10 -> Sea A | BH67: =$L$10 -> Sea A | BM67: =$L$10 -> Sea A | BW67: =$L$10 -> Sea A | CB67: =$L$10 -> Sea A | CL67: 1.2 | CM67: 0.9526279442 | CR67: 1.2 | CS67: 0.9526279442 | CT67: 0.9526279442
AD68: µ | AE68: =$K$17 -> Sideways | AF68: =$K$18 -> Forward | AG68: =$K$19 -> Rearwards | AJ68: 1 | AK68: 2 | AL68: 3 | AM68: 4 | AN68: 5 | AS68: µ | AT68: =$K$17 -> Sideways | AU68: =$K$18 -> Forward | AV68: =$K$19 -> Rearwards | AY68: 1 | AZ68: 2 | BA68: 3 | BB68: 4 | BC68: 5 | BH68: µ | BI68: =$K$17 -> Sideways | BJ68: =$K$18 -> Forward | BK68: =$K$19 -> Rearwards | BN68: 1 | BO68: 2 | BP68: 3 | BQ68: 4 | BR68: 5 | BW68: µ | BX68: =$K$17 -> Sideways | BY68: =$K$18 -> Forward | BZ68: =$K$19 -> Rearwards | CC68: 1 | CD68: 2 | CE68: 3 | CF68: 4 | CG68: 5 | CL68: 1.4 | CM68: 1.039230485 | CR68: 1.4 | CS68: 1.039230485 | CT68: 1.039230485
AD69: 0 | AE69: =IF($K$10,IF(($K$37-$AD69*$L$37)>0,$I$51*2*$AD69*SIN($G$8*PI()/180)/(($K$37-$AD69*$L$37)*$I$24),""),"") ->  | AF69: =IF($K$10,IF(($G$37-$AD69*$H$37)>0,$I$51*2*$AD69*SIN($G$8*PI()/180)/(($G$37-$AD69*$H$37)*$I$24),""),"") ->  | AG69: =IF($K$10,IF(($I$37-$AD69*$J$37)>0,$I$51*2*$AD69*SIN($G$8*PI()/180)/(($I$37-$AD69*$J$37)*$I$24),""),"") ->  | AI69: H/B | AJ69: =$K$20 -> row | AK69: =$K$21 -> rows | AL69: =$K$21 -> rows | AM69: rows | AN69: rows | AO69: H/L | AP69: =$K$18 -> Forward | AQ69: =$K$19 -> Rearwards | AS69: 0 | AT69: =IF($K$10,IF(($K$37-$AS69*$L$37)>0,$I$49*((1+COS($H$12*PI()/180))*COS($H$13*PI()/180)+$I$28*$AS69*SIN($H$12*PI()/180))/(($K$37-$L$37*$I$28*$AS69)),""),"") ->  | AX69: H/B | AY69: =$K$20 -> row | AZ69: =$K$21 -> rows | BA69: =$K$21 -> rows | BB69: rows | BC69: rows | BD69: H/L | BE69: =$K$18 -> Forward | BF69: =$K$19 -> Rearwards | BH69: 0 | BJ69: =IF($K$10,IF(($G$37-$BH69*$H$37)>0,$I$49*2*MIN($I$28*$BH69*SIN($G$16*PI()/180)+COS($G$16*PI()/180)*SIN($G$17*PI()/180),$I$28*$BH69*SIN($H$16*PI()/180)+COS($H$16*PI()/180)*SIN($G$17*PI()/180))/($G$37-$AD69*$H$37*$I$28),""),"") ->  | BK69: =IF($K$10,IF(($I$37-$BH69*$J$37)>0,$I$49*2*MIN($I$28*$BH69*SIN($G$16*PI()/180)+COS($G$16*PI()/180)*SIN($G$17*PI()/180),$I$28*$BH69*SIN($H$16*PI()/180)+COS($H$16*PI()/180)*SIN($G$17*PI()/180))/($I$37-$AD69*$J$37*$I$28),""),"") ->  | BM69: H/B | BN69: =$K$20 -> row | BO69: =$K$21 -> rows | BP69: =$K$21 -> rows | BQ69: rows | BR69: rows | BS69: H/L | BT69: =$K$18 -> Forward | BU69: =$K$19 -> Rearwards | BW69: 0 | BX69: =IF($K$10,IF(($K$37-$BW69*$L$37)>0,$I$49*MIN(COS($G$20*PI()/180)*COS($H$21*PI()/180)+$BW69*$I$28*SIN($G$20*PI()/180),COS($H$20*PI()/180)*COS($H$21*PI()/180)+$BW69*$I$28*SIN($H$20*PI()/180))/($K$37-$BW69*$I$28*$L$37),""),"") ->  | BY69: =IF($K$10,IF(($G$37-$BW69*$H$37)>0,$I$49*MIN(COS($G$20*PI()/180)*SIN($G$21*PI()/180)+$BW69*$I$28*SIN($G$20*PI()/180),COS($H$20*PI()/180)*SIN($G$21*PI()/180)+$BW69*$I$28*SIN($H$20*PI()/180))/($G$37-$BW69*$I$28*$H$37),""),"") ->  | BZ69: =IF($K$10,IF(($I$37-$BW69*$J$37)>0,$I$49*MIN(COS($G$20*PI()/180)*SIN($G$21*PI()/180)+$BW69*$I$28*SIN($G$20*PI()/180),COS($H$20*PI()/180)*SIN($G$21*PI()/180)+$BW69*$I$28*SIN($H$20*PI()/180))/($I$37-$BW69*$I$28*$J$37),""),"") ->  | CB69: H/B | CC69: =$K$20 -> row | CD69: =$K$21 -> rows | CE69: =$K$21 -> rows | CF69: rows | CG69: rows | CH69: H/L | CI69: =$K$18 -> Forward | CJ69: =$K$19 -> Rearwards | CL69: 1.6 | CM69: 1.125833025 | CR69: 1.6 | CS69: 1.125833025 | CT69: 1.125833025
AD70: 0.05 | AI70: 0.6 | AJ70: =IF($K$10,IF($AI70>($L$37/$K$37)/AJ$48,2*$I$51*(SIN($G$8*PI()/180)+0.25*(AJ$48-1))/($I$24*($K$37*$AI70*AJ$48-$L$37)),""),"") ->  | AO70: 0.6 | AP70: =IF($K$10,IF($AO70>($H$37/$G$37),2*$I$51*SIN($G$8*PI()/180)/($I$26*($G$37*$AO70-$H$37)),""),"") ->  | AQ70: =IF($K$10,IF($AO70>($J$37/$I$37),2*$I$51*SIN($G$8*PI()/180)/($I$24*($I$37*$AO70-$J$37)),""),"") ->  | AS70: 0.05 | AX70: 0.6 | AY70: =IF($K$10,IF($AX70>($L$37/$K$37)/AY$48,$I$49*($I$27*(AY$48-1)+MIN(SIN($G$12*PI()/180)+AY$48*$AX70*COS($G$12*PI()/180)*COS($H$13*PI()/180),SIN($H$12*PI()/180)+AY$48*$AX70*COS($H$12*PI()/180)*COS($H$13*PI()/180)))/($K$37*$AX70*AY$48-$L$37),""),"") ->  | BD70: 0.6 | BH70: 0.05 | BM70: 0.6 | BS70: 0.6 | BT70: =IF($K$10,IF($AO70>($H$37/$G$37),4*$I$49*COS($H$16*PI()/180)*SIN($G$17*PI()/180)*$BS70/($G$37*$BS70-$H$37),""),"") ->  | BU70: =IF($K$10,IF($AO70>($J$37/$I$37),4*$I$49*COS($H$16*PI()/180)*SIN($G$17*PI()/180)*$BS70/($I$37*$BS70-$J$37),""),"") ->  | BW70: 0.05 | BY70: =IF($K$10,IF(($G$37-$BW70*$H$37)>0,$I$49*MIN(COS($G$20*PI()/180)*SIN($G$21*PI()/180)+$BW70*$I$28*SIN($G$20*PI()/180),COS($H$20*PI()/180)*SIN($G$21*PI()/180)+$BW70*$I$28*SIN($H$20*PI()/180))/($G$37-$BW70*$I$28*$H$37),""),"") ->  | BZ70: =IF($K$10,IF(($I$37-$BW70*$J$37)>0,$I$49*MIN(COS($G$20*PI()/180)*SIN($G$21*PI()/180)+$BW70*$I$28*SIN($G$20*PI()/180),COS($H$20*PI()/180)*SIN($G$21*PI()/180)+$BW70*$I$28*SIN($H$20*PI()/180))/($I$37-$BW70*$I$28*$J$37),""),"") ->  | CB70: 0.6 | CC70: =IF($K$10,IF($CB70>($L$37/$K$37)/CC$28,$I$49*CM10/($K$37*$CB70-$L$37),""),"") ->  | CH70: 0.6 | CI70: =IF($K$10,IF($CH70>($H$37/$G$37),$I$49*CS10/($G$37*$CH70-$H$37),""),"") ->  | CJ70: =IF($K$10,IF($CH70>($J$37/$I$37),$I$49*CT10/($I$37*$CH70-$J$37),""),"") ->  | CL70: 1.8 | CM70: 1.212435565 | CR70: 1.8 | CS70: 1.212435565 | CT70: 1.212435565
AD71: 0.1 | AI71: 0.8 | AO71: 0.8 | AS71: 0.1 | AX71: 0.8 | BD71: 0.8 | BH71: 0.1 | BM71: 0.8 | BS71: 0.8 | BW71: 0.1 | CB71: 0.8 | CH71: 0.8 | CL71: 2 | CM71: 1.299038106 | CR71: 2 | CS71: 1.299038106 | CT71: 1.299038106
AD72: 0.15 | AI72: 1 | AO72: 1 | AS72: 0.15 | AX72: 1 | BD72: 1 | BH72: 0.15 | BM72: 1 | BS72: 1 | BW72: 0.15 | CB72: 1 | CH72: 1 | CL72: 2.2 | CM72: 1.385640646 | CR72: 2.2 | CS72: 1.385640646 | CT72: 1.385640646
AD73: 0.2 | AI73: 1.2 | AO73: 1.2 | AS73: 0.2 | AX73: 1.2 | BD73: 1.2 | BH73: 0.2 | BM73: 1.2 | BS73: 1.2 | BW73: 0.2 | CB73: 1.2 | CH73: 1.2 | CL73: 2.4 | CM73: 1.472243186 | CR73: 2.4 | CS73: 1.472243186 | CT73: 1.472243186
AD74: 0.25 | AI74: 1.4 | AO74: 1.4 | AS74: 0.25 | AX74: 1.4 | BD74: 1.4 | BH74: 0.25 | BM74: 1.4 | BS74: 1.4 | BW74: 0.25 | CB74: 1.4 | CH74: 1.4 | CL74: 2.6 | CM74: 1.558845727 | CR74: 2.6 | CS74: 1.558845727 | CT74: 1.558845727
AD75: 0.3 | AI75: 1.6 | AO75: 1.6 | AS75: 0.3 | AX75: 1.6 | BD75: 1.6 | BH75: 0.3 | BM75: 1.6 | BS75: 1.6 | BW75: 0.3 | CB75: 1.6 | CH75: 1.6 | CL75: 2.8 | CM75: 1.645448267 | CR75: 2.8 | CS75: 1.645448267 | CT75: 1.645448267
AD76: 0.35 | AI76: 1.8 | AO76: 1.8 | AS76: 0.35 | AX76: 1.8 | BD76: 1.8 | BH76: 0.35 | BM76: 1.8 | BS76: 1.8 | BW76: 0.35 | CB76: 1.8 | CH76: 1.8 | CL76: 3 | CM76: 1.732050808 | CR76: 3 | CS76: 1.732050808 | CT76: 1.732050808
AD77: 0.4 | AI77: 2 | AO77: 2 | AS77: 0.4 | AX77: 2 | BD77: 2 | BH77: 0.4 | BM77: 2 | BS77: 2 | BW77: 0.4 | CB77: 2 | CH77: 2 | CL77: 3.2 | CM77: 1.818653348 | CR77: 3.2 | CS77: 1.818653348 | CT77: 1.818653348
AD78: 0.45 | AI78: 2.2 | AO78: 2.2 | AS78: 0.45 | AX78: 2.2 | BD78: 2.2 | BH78: 0.45 | BM78: 2.2 | BS78: 2.2 | BW78: 0.45 | CB78: 2.2 | CH78: 2.2
AD79: 0.5 | AI79: 2.4 | AO79: 2.4 | AS79: 0.5 | AX79: 2.4 | BD79: 2.4 | BH79: 0.5 | BM79: 2.4 | BS79: 2.4 | BW79: 0.5 | CB79: 2.4 | CH79: 2.4 | CM79: amin, bmax, Case 2 | CS79: amin, bmin, Case 2
AD80: 0.55 | AI80: 2.6 | AO80: 2.6 | AS80: 0.55 | AX80: 2.6 | BD80: 2.6 | BH80: 0.55 | BM80: 2.6 | BS80: 2.6 | BW80: 0.55 | CB80: 2.6 | CH80: 2.6 | CM80: 1 | CN80: 2 | CO80: 3 | CP80: 4 | CQ80: 5
AD81: 0.6 | AI81: 2.8 | AO81: 2.8 | AS81: 0.6 | AX81: 2.8 | BD81: 2.8 | BH81: 0.6 | BM81: 2.8 | BS81: 2.8 | BW81: 0.6 | CB81: 2.8 | CH81: 2.8 | CL81: H/B | CM81: =$K$20 -> row | CN81: =$K$21 -> rows | CO81: =$K$21 -> rows | CP81: rows | CQ81: rows | CR81: H/L | CS81: =$K$18 -> Forward | CT81: =$K$19 -> Rearwards
AD82: 0.65 | AI82: 3 | AO82: 3 | AS82: 0.65 | AX82: 3 | BD82: 3 | BH82: 0.65 | BM82: 3 | BS82: 3 | BW82: 0.65 | CB82: 3 | CH82: 3 | CL82: 0.6 | CM82: =COS($G$20*PI()/180)*COS($H$21*PI()/180)*($CL82-1)+SIN($G$20*PI()/180)*2 -> 0.8267949192 | CR82: 0.6 | CS82: =COS($G$20*PI()/180)*SIN($G$21*PI()/180)*($CR82-1)+SIN($G$20*PI()/180)*2 -> 0.8267949192 | CT82: 0.8267949192
AD83: 0.7 | AI83: 3.2 | AO83: 3.2 | AS83: 0.7 | AX83: 3.2 | BD83: 3.2 | BH83: 0.7 | BM83: 3.2 | BS83: 3.2 | BW83: 0.7 | CB83: 3.2 | CH83: 3.2 | CL83: 0.8 | CM83: 0.9133974596 | CR83: 0.8 | CS83: 0.9133974596 | CT83: 0.9133974596
AD84: 0.75 | AS84: 0.75 | BH84: 0.75 | BW84: 0.75 | CL84: 1 | CM84: 1 | CR84: 1 | CS84: 1 | CT84: 1
AD85: 0.8 | AS85: 0.8 | BH85: 0.8 | BW85: 0.8 | CL85: 1.2 | CM85: 1.08660254 | CR85: 1.2 | CS85: 1.08660254 | CT85: 1.08660254
CL86: 1.4 | CM86: 1.173205081 | CR86: 1.4 | CS86: 1.173205081 | CT86: 1.173205081
AD87: =$L$11 -> Sea B | AI87: =$L$11 -> Sea B | AS87: =$L$11 -> Sea B | AX87: =$L$11 -> Sea B | BH87: =$L$11 -> Sea B | BM87: =$L$11 -> Sea B | BW87: =$L$11 -> Sea B | CB87: =$L$11 -> Sea B | CL87: 1.6 | CM87: 1.259807621 | CR87: 1.6 | CS87: 1.259807621 | CT87: 1.259807621
AD88: µ | AE88: =$K$17 -> Sideways | AF88: =$K$18 -> Forward | AG88: =$K$19 -> Rearwards | AJ88: 1 | AK88: 2 | AL88: 3 | AM88: 4 | AN88: 5 | AS88: µ | AT88: =$K$17 -> Sideways | AU88: =$K$18 -> Forward | AV88: =$K$19 -> Rearwards | AY88: 1 | AZ88: 2 | BA88: 3 | BB88: 4 | BC88: 5 | BH88: µ | BI88: =$K$17 -> Sideways | BJ88: =$K$18 -> Forward | BK88: =$K$19 -> Rearwards | BN88: 1 | BO88: 2 | BP88: 3 | BQ88: 4 | BR88: 5 | BW88: µ | BX88: =$K$17 -> Sideways | BY88: =$K$18 -> Forward | BZ88: =$K$19 -> Rearwards | CC88: 1 | CD88: 2 | CE88: 3 | CF88: 4 | CG88: 5 | CL88: 1.8 | CM88: 1.346410162 | CR88: 1.8 | CS88: 1.346410162 | CT88: 1.346410162
AD89: 0 | AE89: =IF($K$11,IF(($K$38-$AD89*$L$38)>0,$I$51*2*$AD89*SIN($G$8*PI()/180)/(($K$38-$AD89*$L$38)*$I$24),""),"") ->  | AF89: =IF($K$11,IF(($G$38-$AD89*$H$38)>0,$I$51*2*$AD89*SIN($G$8*PI()/180)/(($G$38-$AD89*$H$38)*$I$24),""),"") ->  | AG89: =IF($K$11,IF(($I$38-$AD89*$J$38)>0,$I$51*2*$AD89*SIN($G$8*PI()/180)/(($I$38-$AD89*$J$38)*$I$24),""),"") ->  | AI89: H/B | AJ89: =$K$20 -> row | AK89: =$K$21 -> rows | AL89: =$K$21 -> rows | AM89: rows | AN89: rows | AO89: H/L | AP89: =$K$18 -> Forward | AQ89: =$K$19 -> Rearwards | AS89: 0 | AT89: =IF($K$11,IF(($K$38-$AS89*$L$38)>0,$I$49*((1+COS($H$12*PI()/180))*COS($H$13*PI()/180)+$I$28*$AS89*SIN($H$12*PI()/180))/(($K$38-$L$38*$I$28*$AS89)),""),"") ->  | AX89: H/B | AY89: =$K$20 -> row | AZ89: =$K$21 -> rows | BA89: =$K$21 -> rows | BB89: rows | BC89: rows | BD89: H/L | BE89: =$K$18 -> Forward | BF89: =$K$19 -> Rearwards | BH89: 0 | BJ89: =IF($K$11,IF(($G$38-$BH89*$H$38)>0,$I$49*2*MIN($I$28*$BH89*SIN($G$16*PI()/180)+COS($G$16*PI()/180)*SIN($G$17*PI()/180),$I$28*$BH89*SIN($H$16*PI()/180)+COS($H$16*PI()/180)*SIN($G$17*PI()/180))/($G$38-$AD89*$H$38*$I$28),""),"") ->  | BK89: =IF($K$11,IF(($I$38-$BH89*$J$38)>0,$I$49*2*MIN($I$28*$BH89*SIN($G$16*PI()/180)+COS($G$16*PI()/180)*SIN($G$17*PI()/180),$I$28*$BH89*SIN($H$16*PI()/180)+COS($H$16*PI()/180)*SIN($G$17*PI()/180))/($I$38-$AD89*$J$38*$I$28),""),"") ->  | BM89: H/B | BN89: =$K$20 -> row | BO89: =$K$21 -> rows | BP89: =$K$21 -> rows | BQ89: rows | BR89: rows | BS89: H/L | BT89: =$K$18 -> Forward | BU89: =$K$19 -> Rearwards | BW89: 0 | BX89: =IF($K$11,IF(($K$38-$BW89*$L$38)>0,$I$49*MIN(COS($G$20*PI()/180)*COS($H$21*PI()/180)+$BW89*$I$28*SIN($G$20*PI()/180),COS($H$20*PI()/180)*COS($H$21*PI()/180)+$BW89*$I$28*SIN($H$20*PI()/180))/($K$38-$BW89*$I$28*$L$38),""),"") ->  | BY89: =IF($K$11,IF(($G$38-$BW89*$H$38)>0,$I$49*MIN(COS($G$20*PI()/180)*SIN($G$21*PI()/180)+$BW89*$I$28*SIN($G$20*PI()/180),COS($H$20*PI()/180)*SIN($G$21*PI()/180)+$BW89*$I$28*SIN($H$20*PI()/180))/($G$38-$BW89*$I$28*$H$38),""),"") ->  | BZ89: =IF($K$11,IF(($I$38-$BW89*$J$38)>0,$I$49*MIN(COS($G$20*PI()/180)*SIN($G$21*PI()/180)+$BW89*$I$28*SIN($G$20*PI()/180),COS($H$20*PI()/180)*SIN($G$21*PI()/180)+$BW89*$I$28*SIN($H$20*PI()/180))/($I$38-$BW89*$I$28*$J$38),""),"") ->  | CB89: H/B | CC89: =$K$20 -> row | CD89: =$K$21 -> rows | CE89: =$K$21 -> rows | CF89: rows | CG89: rows | CH89: H/L | CI89: =$K$18 -> Forward | CJ89: =$K$19 -> Rearwards | CL89: 2 | CM89: 1.433012702 | CR89: 2 | CS89: 1.433012702 | CT89: 1.433012702
AD90: 0.05 | AI90: 0.6 | AJ90: =IF($K$11,IF($AI90>($L$38/$K$38)/AJ$48,2*$I$51*(SIN($G$8*PI()/180)+0.25*(AJ$48-1))/($I$24*($K$38*$AI90*AJ$48-$L$38)),""),"") ->  | AO90: 0.6 | AP90: =IF($K$11,IF($AO90>($H$38/$G$38),2*$I$51*SIN($G$8*PI()/180)/($I$26*($G$38*$AO90-$H$38)),""),"") ->  | AQ90: =IF($K$11,IF($AO90>($J$38/$I$38),2*$I$51*SIN($G$8*PI()/180)/($I$24*($I$38*$AO90-$J$38)),""),"") ->  | AS90: 0.05 | AX90: 0.6 | AY90: =IF($K$11,IF($AX90>($L$38/$K$38)/AY$48,$I$49*($I$27*(AY$48-1)+MIN(SIN($G$12*PI()/180)+AY$48*$AX90*COS($G$12*PI()/180)*COS($H$13*PI()/180),SIN($H$12*PI()/180)+AY$48*$AX90*COS($H$12*PI()/180)*COS($H$13*PI()/180)))/($K$38*$AX90*AY$48-$L$38),""),"") ->  | BD90: 0.6 | BH90: 0.05 | BM90: 0.6 | BS90: 0.6 | BT90: =IF($K$11,IF($AO90>($H$38/$G$38),4*$I$49*COS($H$16*PI()/180)*SIN($G$17*PI()/180)*$BS90/($G$38*$BS90-$H$38),""),"") ->  | BU90: =IF($K$11,IF($AO90>($J$38/$I$38),4*$I$49*COS($H$16*PI()/180)*SIN($G$17*PI()/180)*$BS90/($I$38*$BS90-$J$38),""),"") ->  | BW90: 0.05 | BY90: =IF($K$11,IF(($G$38-$BW90*$H$38)>0,$I$49*MIN(COS($G$20*PI()/180)*SIN($G$21*PI()/180)+$BW90*$I$28*SIN($G$20*PI()/180),COS($H$20*PI()/180)*SIN($G$21*PI()/180)+$BW90*$I$28*SIN($H$20*PI()/180))/($G$38-$BW90*$I$28*$H$38),""),"") ->  | BZ90: =IF($K$11,IF(($I$38-$BW90*$J$38)>0,$I$49*MIN(COS($G$20*PI()/180)*SIN($G$21*PI()/180)+$BW90*$I$28*SIN($G$20*PI()/180),COS($H$20*PI()/180)*SIN($G$21*PI()/180)+$BW90*$I$28*SIN($H$20*PI()/180))/($I$38-$BW90*$I$28*$J$38),""),"") ->  | CB90: 0.6 | CC90: =IF($K$11,IF($CB90>($L$38/$K$38)/CC$28,$I$49*CM10/($K$38*$CB90-$L$38),""),"") ->  | CH90: 0.6 | CI90: =IF($K$11,IF($CH90>($H$38/$G$38),$I$49*CS10/($G$38*$CH90-$H$38),""),"") ->  | CJ90: =IF($K$11,IF($CH90>($J$38/$I$38),$I$49*CT10/($I$38*$CH90-$J$38),""),"") ->  | CL90: 2.2 | CM90: 1.519615242 | CR90: 2.2 | CS90: 1.519615242 | CT90: 1.519615242
AD91: 0.1 | AI91: 0.8 | AO91: 0.8 | AS91: 0.1 | AX91: 0.8 | BD91: 0.8 | BH91: 0.1 | BM91: 0.8 | BS91: 0.8 | BW91: 0.1 | CB91: 0.8 | CH91: 0.8 | CL91: 2.4 | CM91: 1.606217783 | CR91: 2.4 | CS91: 1.606217783 | CT91: 1.606217783
AD92: 0.15 | AI92: 1 | AO92: 1 | AS92: 0.15 | AX92: 1 | BD92: 1 | BH92: 0.15 | BM92: 1 | BS92: 1 | BW92: 0.15 | CB92: 1 | CH92: 1 | CL92: 2.6 | CM92: 1.692820323 | CR92: 2.6 | CS92: 1.692820323 | CT92: 1.692820323
AD93: 0.2 | AI93: 1.2 | AO93: 1.2 | AS93: 0.2 | AX93: 1.2 | BD93: 1.2 | BH93: 0.2 | BM93: 1.2 | BS93: 1.2 | BW93: 0.2 | CB93: 1.2 | CH93: 1.2 | CL93: 2.8 | CM93: 1.779422863 | CR93: 2.8 | CS93: 1.779422863 | CT93: 1.779422863
AD94: 0.25 | AI94: 1.4 | AO94: 1.4 | AS94: 0.25 | AX94: 1.4 | BD94: 1.4 | BH94: 0.25 | BM94: 1.4 | BS94: 1.4 | BW94: 0.25 | CB94: 1.4 | CH94: 1.4 | CL94: 3 | CM94: 1.866025404 | CR94: 3 | CS94: 1.866025404 | CT94: 1.866025404
AD95: 0.3 | AI95: 1.6 | AO95: 1.6 | AS95: 0.3 | AX95: 1.6 | BD95: 1.6 | BH95: 0.3 | BM95: 1.6 | BS95: 1.6 | BW95: 0.3 | CB95: 1.6 | CH95: 1.6 | CL95: 3.2 | CM95: 1.952627944 | CR95: 3.2 | CS95: 1.952627944 | CT95: 1.952627944
AD96: 0.35 | AI96: 1.8 | AO96: 1.8 | AS96: 0.35 | AX96: 1.8 | BD96: 1.8 | BH96: 0.35 | BM96: 1.8 | BS96: 1.8 | BW96: 0.35 | CB96: 1.8 | CH96: 1.8
AD97: 0.4 | AI97: 2 | AO97: 2 | AS97: 0.4 | AX97: 2 | BD97: 2 | BH97: 0.4 | BM97: 2 | BS97: 2 | BW97: 0.4 | CB97: 2 | CH97: 2
AD98: 0.45 | AI98: 2.2 | AO98: 2.2 | AS98: 0.45 | AX98: 2.2 | BD98: 2.2 | BH98: 0.45 | BM98: 2.2 | BS98: 2.2 | BW98: 0.45 | CB98: 2.2 | CH98: 2.2
AD99: 0.5 | AI99: 2.4 | AO99: 2.4 | AS99: 0.5 | AX99: 2.4 | BD99: 2.4 | BH99: 0.5 | BM99: 2.4 | BS99: 2.4 | BW99: 0.5 | CB99: 2.4 | CH99: 2.4
AD100: 0.55 | AI100: 2.6 | AO100: 2.6 | AS100: 0.55 | AX100: 2.6 | BD100: 2.6 | BH100: 0.55 | BM100: 2.6 | BS100: 2.6 | BW100: 0.55 | CB100: 2.6 | CH100: 2.6
AD101: 0.6 | AI101: 2.8 | AO101: 2.8 | AS101: 0.6 | AX101: 2.8 | BD101: 2.8 | BH101: 0.6 | BM101: 2.8 | BS101: 2.8 | BW101: 0.6 | CB101: 2.8 | CH101: 2.8
AD102: 0.65 | AI102: 3 | AO102: 3 | AS102: 0.65 | AX102: 3 | BD102: 3 | BH102: 0.65 | BM102: 3 | BS102: 3 | BW102: 0.65 | CB102: 3 | CH102: 3
AD103: 0.7 | AI103: 3.2 | AO103: 3.2 | AS103: 0.7 | AX103: 3.2 | BD103: 3.2 | BH103: 0.7 | BM103: 3.2 | BS103: 3.2 | BW103: 0.7 | BY103: =IF($K$11,IF(($G$38-$BW103*$H$38)>0,$I$49*MIN(COS($G$20*PI()/180)*SIN($G$21*PI()/180)+$BW103*$I$28*SIN($G$20*PI()/180),COS($H$20*PI()/180)*SIN($G$21*PI()/180)+$BW103*$I$28*SIN($H$20*PI()/180))/($G$38-$BW103*$I$28*$H$38),""),"") ->  | CB103: 3.2 | CH103: 3.2
AD104: 0.75 | AS104: 0.75 | BH104: 0.75 | BW104: 0.75
AD105: 0.8 | AS105: 0.8 | BH105: 0.8 | BW105: 0.8
AD107: =$L$12 -> Sea C | AI107: =$L$12 -> Sea C | AS107: =$L$12 -> Sea C | AX107: =$L$12 -> Sea C | BH107: =$L$12 -> Sea C | BM107: =$L$12 -> Sea C | BW107: =$L$12 -> Sea C | CB107: =$L$12 -> Sea C
AD108: µ | AE108: =$K$17 -> Sideways | AF108: =$K$18 -> Forward | AG108: =$K$19 -> Rearwards | AJ108: 1 | AK108: 2 | AL108: 3 | AM108: 4 | AN108: 5 | AS108: µ | AT108: =$K$17 -> Sideways | AU108: =$K$18 -> Forward | AV108: =$K$19 -> Rearwards | AY108: 1 | AZ108: 2 | BA108: 3 | BB108: 4 | BC108: 5 | BH108: µ | BI108: =$K$17 -> Sideways | BJ108: =$K$18 -> Forward | BK108: =$K$19 -> Rearwards | BN108: 1 | BO108: 2 | BP108: 3 | BQ108: 4 | BR108: 5 | BW108: µ | BX108: =$K$17 -> Sideways | BY108: =$K$18 -> Forward | BZ108: =$K$19 -> Rearwards | CC108: 1 | CD108: 2 | CE108: 3 | CF108: 4 | CG108: 5
AD109: 0 | AE109: =IF($K$12,IF(($K$39-$AD109*$L$39)>0,$I$51*2*$AD109*SIN($G$8*PI()/180)/(($K$39-$AD109*$L$39)*$I$24),""),"") ->  | AF109: =IF($K$12,IF(($G$39-$AD109*$H$39)>0,$I$51*2*$AD109*SIN($G$8*PI()/180)/(($G$39-$AD109*$H$39)*$I$24),""),"") ->  | AG109: =IF($K$12,IF(($I$39-$AD109*$J$39)>0,$I$51*2*$AD109*SIN($G$8*PI()/180)/(($I$39-$AD109*$J$39)*$I$24),""),"") ->  | AI109: H/B | AJ109: =$K$20 -> row | AK109: =$K$21 -> rows | AL109: =$K$21 -> rows | AM109: rows | AN109: rows | AO109: H/L | AP109: =$K$18 -> Forward | AQ109: =$K$19 -> Rearwards | AS109: 0 | AT109: =IF($K$12,IF(($K$39-$AS109*$L$39)>0,$I$49*((1+COS($H$12*PI()/180))*COS($H$13*PI()/180)+$I$28*$AS109*SIN($H$12*PI()/180))/(($K$39-$L$39*$I$28*$AS109)),""),"") ->  | AX109: H/B | AY109: =$K$20 -> row | AZ109: =$K$21 -> rows | BA109: =$K$21 -> rows | BB109: rows | BC109: rows | BD109: H/L | BE109: =$K$18 -> Forward | BF109: =$K$19 -> Rearwards | BH109: 0 | BJ109: =IF($K$12,IF(($G$39-$BH109*$H$39)>0,$I$49*2*MIN($I$28*$BH109*SIN($G$16*PI()/180)+COS($G$16*PI()/180)*SIN($G$17*PI()/180),$I$28*$BH109*SIN($H$16*PI()/180)+COS($H$16*PI()/180)*SIN($G$17*PI()/180))/($G$39-$AD109*$H$39*$I$28),""),"") ->  | BK109: =IF($K$12,IF(($I$39-$BH109*$J$39)>0,$I$49*2*MIN($I$28*$BH109*SIN($G$16*PI()/180)+COS($G$16*PI()/180)*SIN($G$17*PI()/180),$I$28*$BH109*SIN($H$16*PI()/180)+COS($H$16*PI()/180)*SIN($G$17*PI()/180))/($I$39-$AD109*$J$39*$I$28),""),"") ->  | BM109: H/B | BN109: =$K$20 -> row | BO109: =$K$21 -> rows | BP109: =$K$21 -> rows | BQ109: rows | BR109: rows | BS109: H/L | BT109: =$K$18 -> Forward | BU109: =$K$19 -> Rearwards | BW109: 0 | BX109: =IF($K$12,IF(($K$39-$BW109*$L$39)>0,$I$49*MIN(COS($G$20*PI()/180)*COS($H$21*PI()/180)+$BW109*$I$28*SIN($G$20*PI()/180),COS($H$20*PI()/180)*COS($H$21*PI()/180)+$BW109*$I$28*SIN($H$20*PI()/180))/($K$39-$BW109*$I$28*$L$39),""),"") ->  | BY109: =IF($K$12,IF(($G$39-$BW109*$H$39)>0,$I$49*MIN(COS($G$20*PI()/180)*SIN($G$21*PI()/180)+$BW109*$I$28*SIN($G$20*PI()/180),COS($H$20*PI()/180)*SIN($G$21*PI()/180)+$BW109*$I$28*SIN($H$20*PI()/180))/($G$39-$BW109*$I$28*$H$39),""),"") ->  | BZ109: =IF($K$12,IF(($I$39-$BW109*$J$39)>0,$I$49*MIN(COS($G$20*PI()/180)*SIN($G$21*PI()/180)+$BW109*$I$28*SIN($G$20*PI()/180),COS($H$20*PI()/180)*SIN($G$21*PI()/180)+$BW109*$I$28*SIN($H$20*PI()/180))/($I$39-$BW109*$I$28*$J$39),""),"") ->  | CB109: H/B | CC109: =$K$20 -> row | CD109: =$K$21 -> rows | CE109: =$K$21 -> rows | CF109: rows | CG109: rows | CH109: H/L | CI109: =$K$18 -> Forward | CJ109: =$K$19 -> Rearwards
AD110: 0.05 | AI110: 0.6 | AJ110: =IF($K$12,IF($AI110>($L$39/$K$39)/AJ$48,2*$I$51*(SIN($G$8*PI()/180)+0.25*(AJ$48-1))/($I$24*($K$39*$AI110*AJ$48-$L$39)),""),"") ->  | AO110: 0.6 | AP110: =IF($K$12,IF($AO110>($H$39/$G$39),2*$I$51*SIN($G$8*PI()/180)/($I$26*($G$39*$AO110-$H$39)),""),"") ->  | AQ110: =IF($K$12,IF($AO110>($J$39/$I$39),2*$I$51*SIN($G$8*PI()/180)/($I$24*($I$39*$AO110-$J$39)),""),"") ->  | AS110: 0.05 | AX110: 0.6 | AY110: =IF($K$12,IF($AX110>($L$39/$K$39)/AY$48,$I$49*($I$27*(AY$48-1)+MIN(SIN($G$12*PI()/180)+AY$48*$AX110*COS($G$12*PI()/180)*COS($H$13*PI()/180),SIN($H$12*PI()/180)+AY$48*$AX110*COS($H$12*PI()/180)*COS($H$13*PI()/180)))/($K$39*$AX110*AY$48-$L$39),""),"") ->  | BD110: 0.6 | BH110: 0.05 | BM110: 0.6 | BS110: 0.6 | BT110: =IF($K$12,IF($AO110>($H$39/$G$39),4*$I$49*COS($H$16*PI()/180)*SIN($G$17*PI()/180)*$BS110/($G$39*$BS110-$H$39),""),"") ->  | BU110: =IF($K$12,IF($AO110>($J$39/$I$39),4*$I$49*COS($H$16*PI()/180)*SIN($G$17*PI()/180)*$BS110/($I$39*$BS110-$J$39),""),"") ->  | BW110: 0.05 | BX110: =IF($K$12,IF(($K$39-$BW110*$L$39)>0,$I$49*MIN(COS($G$20*PI()/180)*COS($H$21*PI()/180)+$BW110*$I$28*SIN($G$20*PI()/180),COS($H$20*PI()/180)*COS($H$21*PI()/180)+$BW110*$I$28*SIN($H$20*PI()/180))/($K$39-$BW110*$I$28*$L$39),""),"") ->  | BY110: =IF($K$12,IF(($G$39-$BW110*$H$39)>0,$I$49*MIN(COS($G$20*PI()/180)*SIN($G$21*PI()/180)+$BW110*$I$28*SIN($G$20*PI()/180),COS($H$20*PI()/180)*SIN($G$21*PI()/180)+$BW110*$I$28*SIN($H$20*PI()/180))/($G$39-$BW110*$I$28*$H$39),""),"") ->  | BZ110: =IF($K$12,IF(($I$39-$BW110*$J$39)>0,$I$49*MIN(COS($G$20*PI()/180)*SIN($G$21*PI()/180)+$BW110*$I$28*SIN($G$20*PI()/180),COS($H$20*PI()/180)*SIN($G$21*PI()/180)+$BW110*$I$28*SIN($H$20*PI()/180))/($I$39-$BW110*$I$28*$J$39),""),"") ->  | CB110: 0.6 | CC110: =IF($K$12,IF($CB110>($L$39/$K$39)/CC$28,$I$49*CM10/($K$39*$CB110-$L$39),""),"") ->  | CH110: 0.6 | CI110: =IF($K$12,IF($CH110>($H$39/$G$39),$I$49*CS10/($G$39*$CH110-$H$39),""),"") ->  | CJ110: =IF($K$12,IF($CH110>($J$39/$I$39),$I$49*CT10/($I$39*$CH110-$J$39),""),"") -> 
AD111: 0.1 | AI111: 0.8 | AO111: 0.8 | AS111: 0.1 | AX111: 0.8 | BD111: 0.8 | BH111: 0.1 | BM111: 0.8 | BS111: 0.8 | BW111: 0.1 | CB111: 0.8 | CH111: 0.8
AD112: 0.15 | AI112: 1 | AO112: 1 | AS112: 0.15 | AX112: 1 | BD112: 1 | BH112: 0.15 | BM112: 1 | BS112: 1 | BW112: 0.15 | CB112: 1 | CH112: 1
AD113: 0.2 | AI113: 1.2 | AO113: 1.2 | AS113: 0.2 | AX113: 1.2 | BD113: 1.2 | BH113: 0.2 | BM113: 1.2 | BS113: 1.2 | BW113: 0.2 | CB113: 1.2 | CH113: 1.2
AD114: 0.25 | AI114: 1.4 | AO114: 1.4 | AS114: 0.25 | AX114: 1.4 | BD114: 1.4 | BH114: 0.25 | BM114: 1.4 | BS114: 1.4 | BW114: 0.25 | CB114: 1.4 | CH114: 1.4
AD115: 0.3 | AI115: 1.6 | AO115: 1.6 | AS115: 0.3 | AX115: 1.6 | BD115: 1.6 | BH115: 0.3 | BM115: 1.6 | BS115: 1.6 | BW115: 0.3 | CB115: 1.6 | CH115: 1.6
AD116: 0.35 | AI116: 1.8 | AO116: 1.8 | AS116: 0.35 | AX116: 1.8 | BD116: 1.8 | BH116: 0.35 | BM116: 1.8 | BS116: 1.8 | BW116: 0.35 | CB116: 1.8 | CH116: 1.8
AD117: 0.4 | AI117: 2 | AO117: 2 | AS117: 0.4 | AX117: 2 | BD117: 2 | BH117: 0.4 | BM117: 2 | BS117: 2 | BW117: 0.4 | CB117: 2 | CH117: 2
AD118: 0.45 | AI118: 2.2 | AO118: 2.2 | AS118: 0.45 | AX118: 2.2 | BD118: 2.2 | BH118: 0.45 | BM118: 2.2 | BS118: 2.2 | BW118: 0.45 | CB118: 2.2 | CH118: 2.2
AD119: 0.5 | AI119: 2.4 | AO119: 2.4 | AS119: 0.5 | AX119: 2.4 | BD119: 2.4 | BH119: 0.5 | BM119: 2.4 | BS119: 2.4 | BW119: 0.5 | CB119: 2.4 | CH119: 2.4
AD120: 0.55 | AI120: 2.6 | AO120: 2.6 | AS120: 0.55 | AX120: 2.6 | BD120: 2.6 | BH120: 0.55 | BM120: 2.6 | BS120: 2.6 | BW120: 0.55 | CB120: 2.6 | CH120: 2.6
AD121: 0.6 | AI121: 2.8 | AO121: 2.8 | AS121: 0.6 | AX121: 2.8 | BD121: 2.8 | BH121: 0.6 | BM121: 2.8 | BS121: 2.8 | BW121: 0.6 | CB121: 2.8 | CH121: 2.8
AD122: 0.65 | AI122: 3 | AO122: 3 | AS122: 0.65 | AX122: 3 | BD122: 3 | BH122: 0.65 | BM122: 3 | BS122: 3 | BW122: 0.65 | CB122: 3 | CH122: 3
AD123: 0.7 | AI123: 3.2 | AO123: 3.2 | AS123: 0.7 | AX123: 3.2 | BD123: 3.2 | BH123: 0.7 | BM123: 3.2 | BS123: 3.2 | BW123: 0.7 | CB123: 3.2 | CH123: 3.2
AD124: 0.75 | AS124: 0.75 | BH124: 0.75 | BW124: 0.75
AD125: 0.8 | AS125: 0.8 | BH125: 0.8 | BW125: 0.8 | BY125: =IF($K$12,IF(($G$39-$BW125*$H$39)>0,$I$49*MIN(COS($G$20*PI()/180)*SIN($G$21*PI()/180)+$BW125*$I$28*SIN($G$20*PI()/180),COS($H$20*PI()/180)*SIN($G$21*PI()/180)+$BW125*$I$28*SIN($H$20*PI()/180))/($G$39-$BW125*$I$28*$H$39),""),"") -> 

Sheet Washers and nails
B1: Lashing Calculator | O1: Tag washers | X1: Nails (4") | AE1: CARING
AE2: Based on EN 12195-1
B3: Transport route | O3: Cargo weight in ton prevented from sliding by each tag washer. | X3: Cargo weight in ton prevented from sliding by each 4" nail. | AE3: Ver 1.1 - 2012-03-19
C5: =L17 -> Road | O5: Tag washers should only be used in combination with lashings.
C6: =L18 -> Rail
C7: =L19 -> Sea A | F7: Accelerations | P7: Dimension [mm] | Y7: =Lashings!K17 -> Sideways | AA7: =Lashings!K18 -> Forward | AC7: =Lashings!K19 -> Rearwards
C8: =L20 -> Sea B | G8: Forward | I8: Rearwards | K8: Sideways | P8: f 48 | Q8: f 62 | R8: f 75 | S8: f 95 | T8: 30 x 57 | U8: 48 x 65 | V8: 130 x 130 | Y8: =Lashings!K22 -> Smooth | Z8: =Lashings!K23 -> Galvanized | AA8: =Lashings!K22 -> Smooth | AB8: =Lashings!K23 -> Galvanized | AC8: =Lashings!K22 -> Smooth | AD8: =Lashings!K23 -> Galvanized
C9: =L21 -> Sea C | F9: Road | G9: =Lashings!G35 -> 0.8 | H9: =Lashings!H35 -> 1 | I9: =Lashings!I35 -> 0.5 | J9: =Lashings!J35 -> 1 | K9: =Lashings!K35 -> 0.5 | L9: =Lashings!L35 -> 1 | X9: µ
F10: Rail | G10: =Lashings!G36 -> 1 | H10: =Lashings!H36 -> 1 | I10: =Lashings!I36 -> 1 | J10: =Lashings!J36 -> 1 | K10: =Lashings!K36 -> 0.5 | L10: =Lashings!L36 -> 1 | O10: µ | P10: =Lashings!K17 -> Sideways | X10: 0.15 | Y10: =IF(Y142<0,Y124,FIXED(Y124,Y142)) -> 0,31 | Z10: 0,46 | AA10: 0,17 | AB10: 0,25 | AC10: 0,31 | AD10: 0,46
F11: Sea A | G11: =Lashings!G37 -> 0.3 | H11: =Lashings!H37 -> 0.5 | I11: =Lashings!I37 -> 0.3 | J11: =Lashings!J37 -> 0.5 | K11: =Lashings!K37 -> 0.5 | L11: =Lashings!L37 -> 1 | O11: 0.2 | P11: =IF(P142<0,P124,FIXED(P124,P142)) -> 0,42 | Q11: =IF(Q142<0,Q124,FIXED(Q124,Q142)) -> 0,58 | R11: 0,75 | S11: 1,00 | T11: 0,42 | U11: 0,58 | V11: 1,3 | X11: 0.2 | Y11: =IF(Y143<0,Y125,FIXED(Y125,Y143)) -> 0,37 | Z11: 0,53 | AA11: =IF(AA143<0,AA125,FIXED(AA125,AA143)) -> 0,18 | AB11: 0,27 | AC11: =IF(AC143<0,AC125,FIXED(AC125,AC143)) -> 0,37 | AD11: 0,53
F12: Sea B | G12: =Lashings!G38 -> 0.3 | H12: =Lashings!H38 -> 0.3 | I12: =Lashings!I38 -> 0.3 | J12: =Lashings!J38 -> 0.3 | K12: =Lashings!K38 -> 0.7 | L12: =Lashings!L38 -> 1 | O12: 0.3 | P12: =IF(P143<0,P125,FIXED(P125,P143)) -> 0,63 | Q12: 0,88 | R12: 1,1 | S12: 1,5 | T12: 0,63 | U12: 0,88 | V12: 1,9 | X12: 0.25 | Y12: 0,44 | Z12: 0,64 | AA12: =IF(AA144<0,AA126,FIXED(AA126,AA144)) -> 0,20 | AB12: 0,29 | AC12: =IF(AC144<0,AC126,FIXED(AC126,AC144)) -> 0,44 | AD12: 0,64
F13: Sea C | G13: =Lashings!G39 -> 0.4 | H13: =Lashings!H39 -> 0.2 | I13: =Lashings!I39 -> 0.4 | J13: =Lashings!J39 -> 0.2 | K13: =Lashings!K39 -> 0.8 | L13: =Lashings!L39 -> 1 | O13: 0.4 | P13: 1,3 | Q13: 1,8 | R13: 2,3 | S13: 3,0 | T13: 1,3 | U13: 1,8 | V13: 3,8 | X13: 0.3 | Y13: 0,55 | Z13: 0,80 | AA13: =IF(AA145<0,AA127,FIXED(AA127,AA145)) -> 0,22 | AB13: 0,32 | AC13: =IF(AC145<0,AC127,FIXED(AC127,AC145)) -> 0,55 | AD13: 0,80
X14: 0.35 | Y14: 0,73 | Z14: 1,1 | AA14: =IF(AA146<0,AA128,FIXED(AA128,AA146)) -> 0,24 | AB14: 0,36 | AC14: =IF(AC146<0,AC128,FIXED(AC128,AC146)) -> 0,73 | AD14: 1,1
F15: Parameters | K15: Transport route | O15: µ | P15: =Lashings!K18 -> Forward | X15: 0.4 | Y15: 1,1 | Z15: 1,6 | AA15: =IF(AA147<0,AA129,FIXED(AA129,AA147)) -> 0,28 | AB15: 0,40 | AC15: =IF(AC147<0,AC129,FIXED(AC129,AC147)) -> 1,1 | AD15: 1,6
F16: Safetyfactor fs (tag washers) | I16: 2 | O16: 0.2 | P16: =IF(P147<0,P129,FIXED(P129,P147)) -> 0,21 | Q16: =IF(Q147<0,Q129,FIXED(Q129,Q147)) -> 0,29 | R16: 0,38 | S16: 0,50 | T16: 0,21 | U16: 0,29 | V16: 0,63 | X16: 0.45 | Y16: 2,2 | Z16: 3,2 | AA16: =IF(AA148<0,AA130,FIXED(AA130,AA148)) -> 0,31 | AB16: 0,46 | AC16: =IF(AC148<0,AC130,FIXED(AC130,AC148)) -> 2,2 | AD16: 3,2
K17: TRUE | L17: =Lashings!L8 -> Road | O17: 0.3 | P17: =IF(P148<0,P130,FIXED(P130,P148)) -> 0,25 | Q17: 0,35 | R17: 0,45 | S17: 0,60 | T17: 0,25 | U17: 0,35 | V17: 0,75 | X17: 0.5 | Y17: no slide | Z17: no slide | AA17: =IF(AA149<0,AA131,FIXED(AA131,AA149)) -> 0,37 | AB17: 0,53 | AC17: =IF(AC149<0,AC131,FIXED(AC131,AC149)) -> no slide | AD17: no slide
K18: FALSE | L18: =Lashings!L9 -> Rail | O18: 0.4 | P18: =IF(P149<0,P131,FIXED(P131,P149)) -> 0,31 | Q18: 0,44 | R18: 0,56 | S18: 0,75 | T18: 0,31 | U18: 0,44 | V18: 0,94 | X18: 0.55 | Y18: no slide | Z18: no slide | AA18: =IF(AA150<0,AA132,FIXED(AA132,AA150)) -> 0,44 | AB18: 0,64 | AC18: =IF(AC150<0,AC132,FIXED(AC132,AC150)) -> no slide | AD18: no slide
F19: Shakefactor | G19: rail - sliding sideways | I19: 0.3 | K19: FALSE | L19: =Lashings!L10 -> Sea A | X19: 0.6 | Y19: no slide | Z19: no slide | AA19: =IF(AA151<0,AA133,FIXED(AA133,AA151)) -> 0,55 | AB19: 0,80 | AC19: =IF(AC151<0,AC133,FIXED(AC133,AC151)) -> no slide | AD19: no slide
K20: FALSE | L20: =Lashings!L11 -> Sea B | O20: µ | P20: =Lashings!K19 -> Rearwards | X20: 0.65 | Y20: no slide | Z20: no slide | AA20: =IF(AA152<0,AA134,FIXED(AA134,AA152)) -> 0,73 | AB20: 1,1 | AC20: =IF(AC152<0,AC134,FIXED(AC134,AC152)) -> no slide | AD20: no slide
K21: FALSE | L21: =Lashings!L12 -> Sea C | O21: 0.2 | P21: =IF(P152<0,P134,FIXED(P134,P152)) -> 0,42 | Q21: =IF(Q152<0,Q134,FIXED(Q134,Q152)) -> 0,58 | R21: 0,75 | S21: 1,00 | T21: 0,42 | U21: 0,58 | V21: 1,3 | X21: 0.7 | Y21: no slide | Z21: no slide | AA21: =IF(AA153<0,AA135,FIXED(AA135,AA153)) -> 1,1 | AB21: 1,6 | AC21: =IF(AC153<0,AC135,FIXED(AC135,AC153)) -> no slide | AD21: no slide
O22: 0.3 | P22: =IF(P153<0,P135,FIXED(P135,P153)) -> 0,63 | Q22: 0,88 | R22: 1,1 | S22: 1,5 | T22: 0,63 | U22: 0,88 | V22: 1,9 | X22: 0.75 | Y22: no slide | Z22: no slide | AA22: =IF(AA154<0,AA136,FIXED(AA136,AA154)) -> 2,2 | AB22: 3,2 | AC22: =IF(AC154<0,AC136,FIXED(AC136,AC154)) -> no slide | AD22: no slide
O23: 0.4 | P23: =IF(P154<0,P136,FIXED(P136,P154)) -> 1,3 | Q23: 1,8 | R23: 2,3 | S23: 3,0 | T23: 1,3 | U23: 1,8 | V23: 3,8 | X23: 0.8 | Y23: no slide | Z23: no slide | AA23: =IF(AA155<0,AA137,FIXED(AA137,AA155)) -> no slide | AB23: no slide | AC23: =IF(AC155<0,AC137,FIXED(AC137,AC155)) -> no slide | AD23: no slide
P26: Dimension | Y26: Type
P27: 48 | Q27: 62 | R27: 75 | S27: 95 | T27: 30 x 57 | U27: 48 x 65 | V27: 130 x 130 | Y27: =Y8 -> Smooth | Z27: =Z8 -> Galvanized
M28: MBL (ton) | P28: 0.5 | Q28: 0.7 | R28: 0.9 | S28: 1.2 | T28: 0.5 | U28: 0.7 | V28: 1.5 | Y28: 0.22 | Z28: 0.32 | AA28: MBL (ton)
M29: MSL (ton) | P29: 0.25 | Q29: 0.35 | R29: 0.45 | S29: 0.6 | T29: 0.25 | U29: 0.35 | V29: 0.75 | Y29: =Y28/2 -> 0.11 | Z29: =Z28/2 -> 0.16 | AA29: MSL (ton)
O31: Road | X31: Road
Y32: =$Y$7 -> Sideways | AA32: =$AA$7 -> Forward | AC32: =$AC$7 -> Rearwards
O33: µ | P33: =P10 -> Sideways | X33: µ | Y33: =Y$8 -> Smooth | Z33: =Z$8 -> Galvanized | AA33: Smooth | AB33: Galvanized | AC33: Smooth | AD33: Galvanized
O34: 0.2 | P34: =IF($K$17,P$29/($I$16*($K$9-$O34*$L$9)),"") -> 0.4166666667 | Q34: =IF($K$17,Q$29/($I$16*($K$9-$O34*$L$9)),"") -> 0.5833333333 | R34: 0.75 | S34: 1 | T34: 0.4166666667 | U34: 0.5833333333 | V34: 1.25 | X34: 0.15 | Y34: =IF(($K$9-$X34*$L$9)>0,IF($K$17,Y$29/(($K$9-$X34*$L$9)),""),"") -> 0.3142857143 | Z34: 0.4571428571 | AA34: =IF(($G$9-$X34*$H$9)>0,IF($K$17,Y$29/(($G$9-$X34*$H$9)),""),"") -> 0.1692307692 | AB34: =IF(($G$9-$X34*$H$9)>0,IF($K$17,Z$29/(($G$9-$X34*$H$9)),""),"") -> 0.2461538462 | AC34: =IF(($I$9-$X34*$J$9)>0,IF($K$17,Y$29/(($I$9-$X34*$J$9)),""),"") -> 0.3142857143 | AD34: =IF(($I$9-$X34*$J$9)>0,IF($K$17,Z$29/(($I$9-$X34*$J$9)),""),"") -> 0.4571428571
O35: 0.3 | P35: =IF($K$17,P$29/($I$16*($K$9-$O35*$L$9)),"") -> 0.625 | Q35: 0.875 | R35: 1.125 | S35: 1.5 | T35: 0.625 | U35: 0.875 | V35: 1.875 | X35: 0.2 | Y35: 0.3666666667 | Z35: 0.5333333333 | AA35: 0.1833333333 | AB35: 0.2666666667 | AC35: 0.3666666667 | AD35: 0.5333333333
O36: 0.4 | P36: 1.25 | Q36: 1.75 | R36: 2.25 | S36: 3 | T36: 1.25 | U36: 1.75 | V36: 3.75 | X36: 0.25 | Y36: 0.44 | Z36: 0.64 | AA36: 0.2 | AB36: 0.2909090909 | AC36: 0.44 | AD36: 0.64
X37: 0.3 | Y37: 0.55 | Z37: 0.8 | AA37: 0.22 | AB37: 0.32 | AC37: 0.55 | AD37: 0.8
O38: µ | P38: =P15 -> Forward | X38: 0.35 | Y38: 0.7333333333 | Z38: 1.066666667 | AA38: 0.2444444444 | AB38: 0.3555555556 | AC38: 0.7333333333 | AD38: 1.066666667
O39: 0.2 | P39: =IF($K$17,P$29/($I$16*($G$9-$O39*$H$9)),"") -> 0.2083333333 | Q39: =IF($K$17,Q$29/($I$16*($G$9-$O39*$H$9)),"") -> 0.2916666667 | R39: 0.375 | S39: 0.5 | T39: 0.2083333333 | U39: 0.2916666667 | V39: 0.625 | X39: 0.4 | Y39: 1.1 | Z39: 1.6 | AA39: 0.275 | AB39: 0.4 | AC39: 1.1 | AD39: 1.6
O40: 0.3 | P40: =IF($K$17,P$29/($I$16*($G$9-$O40*$H$9)),"") -> 0.25 | Q40: 0.35 | R40: 0.45 | S40: 0.6 | T40: 0.25 | U40: 0.35 | V40: 0.75 | X40: 0.45 | Y40: 2.2 | Z40: 3.2 | AA40: 0.3142857143 | AB40: 0.4571428571 | AC40: 2.2 | AD40: 3.2
O41: 0.4 | P41: 0.3125 | Q41: 0.4375 | R41: 0.5625 | S41: 0.75 | T41: 0.3125 | U41: 0.4375 | V41: 0.9375 | X41: 0.5 | AA41: 0.3666666667 | AB41: 0.5333333333
X42: 0.55 | AA42: 0.44 | AB42: 0.64
O43: µ | P43: =P20 -> Rearwards | X43: 0.6 | AA43: 0.55 | AB43: 0.8
O44: 0.2 | P44: =IF($K$17,P$29/($I$16*($I$9-$O44*$J$9)),"") -> 0.4166666667 | Q44: =IF($K$17,Q$29/($I$16*($I$9-$O44*$J$9)),"") -> 0.5833333333 | R44: 0.75 | S44: 1 | T44: 0.4166666667 | U44: 0.5833333333 | V44: 1.25 | X44: 0.65 | AA44: 0.7333333333 | AB44: 1.066666667
O45: 0.3 | P45: =IF($K$17,P$29/($I$16*($I$9-$O45*$J$9)),"") -> 0.625 | Q45: 0.875 | R45: 1.125 | S45: 1.5 | T45: 0.625 | U45: 0.875 | V45: 1.875 | X45: 0.7 | AA45: 1.1 | AB45: 1.6
O46: 0.4 | P46: 1.25 | Q46: 1.75 | R46: 2.25 | S46: 3 | T46: 1.25 | U46: 1.75 | V46: 3.75 | X46: 0.75 | AA46: 2.2 | AB46: 3.2
X47: 0.8
O49: Rail | X49: Rail
Y50: =$Y$7 -> Sideways | AA50: =$AA$7 -> Forward | AC50: =$AC$7 -> Rearwards
O51: µ | P51: =P33 -> Sideways | X51: µ | Y51: =Y$8 -> Smooth | Z51: =Z$8 -> Galvanized | AA51: Smooth | AB51: Galvanized | AC51: Smooth | AD51: Galvanized
O52: 0.2 | P52: =IF($K$18,P$29/($I$16*($K$10-$O52*($L$10-$I$19))),"") ->  | Q52: =IF($K$18,Q$29/($I$16*($K$10-$O52*($L$10-$I$19))),"") ->  | X52: 0.15 | Y52: =IF(($K$10-$X52*$L$10)>0,IF($K$18,Y$29/(($K$10-$X52*($L$10-$I$19))),""),"") ->  | Z52: =IF(($K$10-$X52*$L$10)>0,IF($K$18,Z$29/(($K$10-$X52*($L$10-$I$19))),""),"") ->  | AA52: =IF(($G$10-$X52*$H$10)>0,IF($K$18,Y$29/(($G$10-$X52*$H$10)),""),"") ->  | AB52: =IF(($G$10-$X52*$H$10)>0,IF($K$18,Z$29/(($G$10-$X52*$H$10)),""),"") ->  | AC52: =IF(($I$10-$X52*$J$10)>0,IF($K$18,Y$29/(($I$10-$X52*$J$10)),""),"") ->  | AD52: =IF(($I$10-$X52*$J$10)>0,IF($K$18,Z$29/(($I$10-$X52*$J$10)),""),"") -> 
O53: 0.3 | P53: =IF($K$18,P$29/($I$16*($K$10-$O53*($L$10-$I$19))),"") ->  | X53: 0.2 | Y53: =IF(($K$10-$X53*$L$10)>0,IF($K$18,Y$29/(($K$10-$X53*($L$10-$I$19))),""),"") ->  | AA53: =IF(($G$10-$X53*$H$10)>0,IF($K$18,Y$29/(($G$10-$X53*$H$10)),""),"") ->  | AB53: =IF(($G$10-$X53*$H$10)>0,IF($K$18,Z$29/(($G$10-$X53*$H$10)),""),"") ->  | AC53: =IF(($I$10-$X53*$J$10)>0,IF($K$18,Y$29/(($I$10-$X53*$J$10)),""),"") ->  | AD53: =IF(($I$10-$X53*$J$10)>0,IF($K$18,Z$29/(($I$10-$X53*$J$10)),""),"") -> 
O54: 0.4 | X54: 0.25
X55: 0.3
O56: µ | P56: =P38 -> Forward | X56: 0.35
O57: 0.2 | P57: =IF($K$18,P$29/($I$16*($G$10-$O57*$H$10)),"") ->  | Q57: =IF($K$18,Q$29/($I$16*($G$10-$O57*$H$10)),"") ->  | X57: 0.4
O58: 0.3 | P58: =IF($K$18,P$29/($I$16*($G$10-$O58*$H$10)),"") ->  | X58: 0.45
O59: 0.4 | X59: 0.5
X60: 0.55
O61: µ | P61: =P43 -> Rearwards | X61: 0.6
O62: 0.2 | P62: =IF($K$18,P$29/($I$16*($I$10-$O62*$J$10)),"") ->  | Q62: =IF($K$18,Q$29/($I$16*($I$10-$O62*$J$10)),"") ->  | X62: 0.65
O63: 0.3 | P63: =IF($K$18,P$29/($I$16*($I$10-$O63*$J$10)),"") ->  | X63: 0.7
O64: 0.4 | X64: 0.75
X65: 0.8
O67: Sea A | X67: Sea A
Y68: =$Y$7 -> Sideways | AA68: =$AA$7 -> Forward | AC68: =$AC$7 -> Rearwards
O69: µ | P69: =P51 -> Sideways | X69: µ | Y69: =Y$8 -> Smooth | Z69: =Z$8 -> Galvanized | AA69: Smooth | AB69: Galvanized | AC69: Smooth | AD69: Galvanized
O70: 0.2 | P70: =IF($K$19,P$29/($I$16*($K$11-$O70*$L$11)),"") ->  | Q70: =IF($K$19,Q$29/($I$16*($K$11-$O70*$L$11)),"") ->  | X70: 0.15 | Y70: =IF(($K$11-$X70*$L$11)>0,IF($K$19,Y$29/(($K$11-$X70*$L$11)),""),"") ->  | Z70: =IF(($K$11-$X70*$L$11)>0,IF($K$19,Z$29/(($K$11-$X70*$L$11)),""),"") ->  | AA70: =IF(($G$11-$X70*$H$11)>0,IF($K$19,Y$29/(($G$11-$X70*$H$11)),""),"") ->  | AB70: =IF(($G$11-$X70*$H$11)>0,IF($K$19,Z$29/(($G$11-$X70*$H$11)),""),"") ->  | AC70: =IF(($I$11-$X70*$J$11)>0,IF($K$19,Y$29/(($I$11-$X70*$J$11)),""),"") ->  | AD70: =IF(($I$11-$X70*$J$11)>0,IF($K$19,Z$29/(($I$11-$X70*$J$11)),""),"") -> 
O71: 0.3 | P71: =IF($K$19,P$29/($I$16*($K$11-$O71*$L$11)),"") ->  | X71: 0.2 | Y71: =IF(($K$11-$X71*$L$11)>0,IF($K$19,Y$29/(($K$11-$X71*$L$11)),""),"") ->  | AA71: =IF(($G$11-$X71*$H$11)>0,IF($K$19,Y$29/(($G$11-$X71*$H$11)),""),"") ->  | AB71: =IF(($G$11-$X71*$H$11)>0,IF($K$19,Z$29/(($G$11-$X71*$H$11)),""),"") ->  | AC71: =IF(($I$11-$X71*$J$11)>0,IF($K$19,Y$29/(($I$11-$X71*$J$11)),""),"") ->  | AD71: =IF(($I$11-$X71*$J$11)>0,IF($K$19,Z$29/(($I$11-$X71*$J$11)),""),"") -> 
O72: 0.4 | X72: 0.25
X73: 0.3
O74: µ | P74: =P56 -> Forward | X74: 0.35
O75: 0.2 | P75: =IF($K$19,P$29/($I$16*($G$11-$O75*$H$11)),"") ->  | Q75: =IF($K$19,Q$29/($I$16*($G$11-$O75*$H$11)),"") ->  | X75: 0.4
O76: 0.3 | P76: =IF($K$19,P$29/($I$16*($G$11-$O76*$H$11)),"") ->  | X76: 0.45
O77: 0.4 | X77: 0.5
X78: 0.55
O79: µ | P79: =P61 -> Rearwards | X79: 0.6
O80: 0.2 | P80: =IF($K$19,P$29/($I$16*($I$11-$O80*$J$11)),"") ->  | Q80: =IF($K$19,Q$29/($I$16*($I$11-$O80*$J$11)),"") ->  | X80: 0.65
O81: 0.3 | P81: =IF($K$19,P$29/($I$16*($I$11-$O81*$J$11)),"") ->  | X81: 0.7
O82: 0.4 | X82: 0.75
X83: 0.8
O85: Sea B | X85: Sea B
Y86: =$Y$7 -> Sideways | AA86: =$AA$7 -> Forward | AC86: =$AC$7 -> Rearwards
O87: µ | P87: =P69 -> Sideways | X87: µ | Y87: =Y$8 -> Smooth | Z87: =Z$8 -> Galvanized | AA87: Smooth | AB87: Galvanized | AC87: Smooth | AD87: Galvanized
O88: 0.2 | P88: =IF($K$20,P$29/($I$16*($K$12-$O88*$L$12)),"") ->  | Q88: =IF($K$20,Q$29/($I$16*($K$12-$O88*$L$12)),"") ->  | X88: 0.15 | Y88: =IF(($K$12-$X88*$L$12)>0,IF($K$20,Y$29/(($K$12-$X88*$L$12)),""),"") ->  | Z88: =IF(($K$12-$X88*$L$12)>0,IF($K$20,Z$29/(($K$12-$X88*$L$12)),""),"") ->  | AA88: =IF(($G$12-$X88*$H$12)>0,IF($K$20,Y$29/(($G$12-$X88*$H$12)),""),"") ->  | AB88: =IF(($G$12-$X88*$H$12)>0,IF($K$20,Z$29/(($G$12-$X88*$H$12)),""),"") ->  | AC88: =IF(($I$12-$X88*$J$12)>0,IF($K$20,Y$29/(($I$12-$X88*$J$12)),""),"") ->  | AD88: =IF(($I$12-$X88*$J$12)>0,IF($K$20,Z$29/(($I$12-$X88*$J$12)),""),"") -> 
O89: 0.3 | P89: =IF($K$20,P$29/($I$16*($K$12-$O89*$L$12)),"") ->  | X89: 0.2 | Y89: =IF(($K$12-$X89*$L$12)>0,IF($K$20,Y$29/(($K$12-$X89*$L$12)),""),"") ->  | AA89: =IF(($G$12-$X89*$H$12)>0,IF($K$20,Y$29/(($G$12-$X89*$H$12)),""),"") ->  | AB89: =IF(($G$12-$X89*$H$12)>0,IF($K$20,Z$29/(($G$12-$X89*$H$12)),""),"") ->  | AC89: =IF(($I$12-$X89*$J$12)>0,IF($K$20,Y$29/(($I$12-$X89*$J$12)),""),"") ->  | AD89: =IF(($I$12-$X89*$J$12)>0,IF($K$20,Z$29/(($I$12-$X89*$J$12)),""),"") -> 
O90: 0.4 | X90: 0.25
X91: 0.3
O92: µ | P92: =P74 -> Forward | X92: 0.35
O93: 0.2 | P93: =IF($K$20,P$29/($I$16*($G$12-$O93*$H$12)),"") ->  | Q93: =IF($K$20,Q$29/($I$16*($G$12-$O93*$H$12)),"") ->  | X93: 0.4
O94: 0.3 | P94: =IF($K$20,P$29/($I$16*($G$12-$O94*$H$12)),"") ->  | X94: 0.45
O95: 0.4 | X95: 0.5
X96: 0.55
O97: µ | P97: =P79 -> Rearwards | X97: 0.6
O98: 0.2 | P98: =IF($K$20,P$29/($I$16*($I$12-$O98*$J$12)),"") ->  | Q98: =IF($K$20,Q$29/($I$16*($I$12-$O98*$J$12)),"") ->  | X98: 0.65
O99: 0.3 | P99: =IF($K$20,P$29/($I$16*($I$12-$O99*$J$12)),"") ->  | X99: 0.7
O100: 0.4 | X100: 0.75
X101: 0.8
O103: Sea C | X103: Sea C
Y104: =$Y$7 -> Sideways | AA104: =$AA$7 -> Forward | AC104: =$AC$7 -> Rearwards
O105: µ | P105: =P87 -> Sideways | X105: µ | Y105: =Y$8 -> Smooth | Z105: =Z$8 -> Galvanized | AA105: Smooth | AB105: Galvanized | AC105: Smooth | AD105: Galvanized
O106: 0.2 | P106: =IF($K$21,P$29/($I$16*($K$13-$O106*$L$13)),"") ->  | Q106: =IF($K$21,Q$29/($I$16*($K$13-$O106*$L$13)),"") ->  | X106: 0.15 | Y106: =IF(($K$13-$X106*$L$13)>0,IF($K$21,Y$29/(($K$13-$X106*$L$13)),""),"") ->  | Z106: =IF(($K$13-$X106*$L$13)>0,IF($K$21,Z$29/(($K$13-$X106*$L$13)),""),"") ->  | AA106: =IF(($G$13-$X106*$H$13)>0,IF($K$21,Y$29/(($G$13-$X106*$H$13)),""),"") ->  | AB106: =IF(($G$13-$X106*$H$13)>0,IF($K$21,Z$29/(($G$13-$X106*$H$13)),""),"") ->  | AC106: =IF(($I$13-$X106*$J$13)>0,IF($K$21,Y$29/(($I$13-$X106*$J$13)),""),"") ->  | AD106: =IF(($I$13-$X106*$J$13)>0,IF($K$21,Z$29/(($I$13-$X106*$J$13)),""),"") -> 
O107: 0.3 | P107: =IF($K$21,P$29/($I$16*($K$13-$O107*$L$13)),"") ->  | X107: 0.2 | Y107: =IF(($K$13-$X107*$L$13)>0,IF($K$21,Y$29/(($K$13-$X107*$L$13)),""),"") ->  | AA107: =IF(($G$13-$X107*$H$13)>0,IF($K$21,Y$29/(($G$13-$X107*$H$13)),""),"") ->  | AB107: =IF(($G$13-$X107*$H$13)>0,IF($K$21,Z$29/(($G$13-$X107*$H$13)),""),"") ->  | AC107: =IF(($I$13-$X107*$J$13)>0,IF($K$21,Y$29/(($I$13-$X107*$J$13)),""),"") ->  | AD107: =IF(($I$13-$X107*$J$13)>0,IF($K$21,Z$29/(($I$13-$X107*$J$13)),""),"") -> 
O108: 0.4 | X108: 0.25
X109: 0.3
O110: µ | P110: =P92 -> Forward | X110: 0.35
O111: 0.2 | P111: =IF($K$21,P$29/($I$16*($G$13-$O111*$H$13)),"") ->  | Q111: =IF($K$21,Q$29/($I$16*($G$13-$O111*$H$13)),"") ->  | X111: 0.4
O112: 0.3 | P112: =IF($K$21,P$29/($I$16*($G$13-$O112*$H$13)),"") ->  | X112: 0.45
O113: 0.4 | X113: 0.5
X114: 0.55
O115: µ | P115: =P97 -> Rearwards | X115: 0.6
O116: 0.2 | P116: =IF($K$21,P$29/($I$16*($I$13-$O116*$J$13)),"") ->  | Q116: =IF($K$21,Q$29/($I$16*($I$13-$O116*$J$13)),"") ->  | X116: 0.65
O117: 0.3 | P117: =IF($K$21,P$29/($I$16*($I$13-$O117*$J$13)),"") ->  | X117: 0.7
O118: 0.4 | X118: 0.75
X119: 0.8
O121: Minimum | X121: Minimum
Y122: =$Y$7 -> Sideways | AA122: =$AA$7 -> Forward | AC122: =$AC$7 -> Rearwards
O123: µ | P123: =P105 -> Sideways | X123: µ | Y123: =Y$8 -> Smooth | Z123: =Z$8 -> Galvanized | AA123: Smooth | AB123: Galvanized | AC123: Smooth | AD123: Galvanized
O124: 0.2 | P124: =IF(COUNT(P34,P52,P70,P88,P106)>0,MIN(P34,P52,P70,P88,P106),Lashings!$K$15) -> 0.4166666667 | Q124: =IF(COUNT(Q34,Q52,Q70,Q88,Q106)>0,MIN(Q34,Q52,Q70,Q88,Q106),Lashings!$K$15) -> 0.5833333333 | R124: =IF(COUNT(R34,R52,R70,R88,R106)>0,MIN(R34,R52,R70,R88,R106),Lashings!$K$15) -> 0.75 | S124: =IF(COUNT(S34,S52,S70,S88,S106)>0,MIN(S34,S52,S70,S88,S106),Lashings!$K$15) -> 1 | T124: =IF(COUNT(T34,T52,T70,T88,T106)>0,MIN(T34,T52,T70,T88,T106),Lashings!$K$15) -> 0.4166666667 | U124: =IF(COUNT(U34,U52,U70,U88,U106)>0,MIN(U34,U52,U70,U88,U106),Lashings!$K$15) -> 0.5833333333 | V124: =IF(COUNT(V34,V52,V70,V88,V106)>0,MIN(V34,V52,V70,V88,V106),Lashings!$K$15) -> 1.25 | X124: 0.15 | Y124: =IF(COUNT(Y34,Y52,Y70,Y88,Y106)>0,MIN(Y34,Y52,Y70,Y88,Y106),Lashings!$K$15) -> 0.3142857143 | Z124: =IF(COUNT(Z34,Z52,Z70,Z88,Z106)>0,MIN(Z34,Z52,Z70,Z88,Z106),Lashings!$K$15) -> 0.4571428571 | AA124: =IF(COUNT(AA34,AA52,AA70,AA88,AA106)>0,MIN(AA34,AA52,AA70,AA88,AA106),Lashings!$K$15) -> 0.1692307692 | AB124: =IF(COUNT(AB34,AB52,AB70,AB88,AB106)>0,MIN(AB34,AB52,AB70,AB88,AB106),Lashings!$K$15) -> 0.2461538462 | AC124: =IF(COUNT(AC34,AC52,AC70,AC88,AC106)>0,MIN(AC34,AC52,AC70,AC88,AC106),Lashings!$K$15) -> 0.3142857143 | AD124: =IF(COUNT(AD34,AD52,AD70,AD88,AD106)>0,MIN(AD34,AD52,AD70,AD88,AD106),Lashings!$K$15) -> 0.4571428571
O125: 0.3 | P125: =IF(COUNT(P35,P53,P71,P89,P107)>0,MIN(P35,P53,P71,P89,P107),Lashings!$K$15) -> 0.625 | Q125: =IF(COUNT(Q35,Q53,Q71,Q89,Q107)>0,MIN(Q35,Q53,Q71,Q89,Q107),Lashings!$K$15) -> 0.875 | R125: =IF(COUNT(R35,R53,R71,R89,R107)>0,MIN(R35,R53,R71,R89,R107),Lashings!$K$15) -> 1.125 | S125: =IF(COUNT(S35,S53,S71,S89,S107)>0,MIN(S35,S53,S71,S89,S107),Lashings!$K$15) -> 1.5 | T125: =IF(COUNT(T35,T53,T71,T89,T107)>0,MIN(T35,T53,T71,T89,T107),Lashings!$K$15) -> 0.625 | U125: =IF(COUNT(U35,U53,U71,U89,U107)>0,MIN(U35,U53,U71,U89,U107),Lashings!$K$15) -> 0.875 | V125: =IF(COUNT(V35,V53,V71,V89,V107)>0,MIN(V35,V53,V71,V89,V107),Lashings!$K$15) -> 1.875 | X125: 0.2 | Y125: =IF(COUNT(Y35,Y53,Y71,Y89,Y107)>0,MIN(Y35,Y53,Y71,Y89,Y107),Lashings!$K$15) -> 0.3666666667 | Z125: =IF(COUNT(Z35,Z53,Z71,Z89,Z107)>0,MIN(Z35,Z53,Z71,Z89,Z107),Lashings!$K$15) -> 0.5333333333 | AA125: =IF(COUNT(AA35,AA53,AA71,AA89,AA107)>0,MIN(AA35,AA53,AA71,AA89,AA107),Lashings!$K$15) -> 0.1833333333 | AB125: =IF(COUNT(AB35,AB53,AB71,AB89,AB107)>0,MIN(AB35,AB53,AB71,AB89,AB107),Lashings!$K$15) -> 0.2666666667 | AC125: =IF(COUNT(AC35,AC53,AC71,AC89,AC107)>0,MIN(AC35,AC53,AC71,AC89,AC107),Lashings!$K$15) -> 0.3666666667 | AD125: =IF(COUNT(AD35,AD53,AD71,AD89,AD107)>0,MIN(AD35,AD53,AD71,AD89,AD107),Lashings!$K$15) -> 0.5333333333
O126: 0.4 | P126: =IF(COUNT(P36,P54,P72,P90,P108)>0,MIN(P36,P54,P72,P90,P108),Lashings!$K$15) -> 1.25 | Q126: =IF(COUNT(Q36,Q54,Q72,Q90,Q108)>0,MIN(Q36,Q54,Q72,Q90,Q108),Lashings!$K$15) -> 1.75 | R126: =IF(COUNT(R36,R54,R72,R90,R108)>0,MIN(R36,R54,R72,R90,R108),Lashings!$K$15) -> 2.25 | S126: =IF(COUNT(S36,S54,S72,S90,S108)>0,MIN(S36,S54,S72,S90,S108),Lashings!$K$15) -> 3 | T126: =IF(COUNT(T36,T54,T72,T90,T108)>0,MIN(T36,T54,T72,T90,T108),Lashings!$K$15) -> 1.25 | U126: =IF(COUNT(U36,U54,U72,U90,U108)>0,MIN(U36,U54,U72,U90,U108),Lashings!$K$15) -> 1.75 | V126: =IF(COUNT(V36,V54,V72,V90,V108)>0,MIN(V36,V54,V72,V90,V108),Lashings!$K$15) -> 3.75 | X126: 0.25 | Y126: =IF(COUNT(Y36,Y54,Y72,Y90,Y108)>0,MIN(Y36,Y54,Y72,Y90,Y108),Lashings!$K$15) -> 0.44 | Z126: =IF(COUNT(Z36,Z54,Z72,Z90,Z108)>0,MIN(Z36,Z54,Z72,Z90,Z108),Lashings!$K$15) -> 0.64 | AA126: =IF(COUNT(AA36,AA54,AA72,AA90,AA108)>0,MIN(AA36,AA54,AA72,AA90,AA108),Lashings!$K$15) -> 0.2 | AB126: =IF(COUNT(AB36,AB54,AB72,AB90,AB108)>0,MIN(AB36,AB54,AB72,AB90,AB108),Lashings!$K$15) -> 0.2909090909 | AC126: =IF(COUNT(AC36,AC54,AC72,AC90,AC108)>0,MIN(AC36,AC54,AC72,AC90,AC108),Lashings!$K$15) -> 0.44 | AD126: =IF(COUNT(AD36,AD54,AD72,AD90,AD108)>0,MIN(AD36,AD54,AD72,AD90,AD108),Lashings!$K$15) -> 0.64
X127: 0.3 | Y127: =IF(COUNT(Y37,Y55,Y73,Y91,Y109)>0,MIN(Y37,Y55,Y73,Y91,Y109),Lashings!$K$15) -> 0.55 | Z127: =IF(COUNT(Z37,Z55,Z73,Z91,Z109)>0,MIN(Z37,Z55,Z73,Z91,Z109),Lashings!$K$15) -> 0.8 | AA127: =IF(COUNT(AA37,AA55,AA73,AA91,AA109)>0,MIN(AA37,AA55,AA73,AA91,AA109),Lashings!$K$15) -> 0.22 | AB127: =IF(COUNT(AB37,AB55,AB73,AB91,AB109)>0,MIN(AB37,AB55,AB73,AB91,AB109),Lashings!$K$15) -> 0.32 | AC127: =IF(COUNT(AC37,AC55,AC73,AC91,AC109)>0,MIN(AC37,AC55,AC73,AC91,AC109),Lashings!$K$15) -> 0.55 | AD127: =IF(COUNT(AD37,AD55,AD73,AD91,AD109)>0,MIN(AD37,AD55,AD73,AD91,AD109),Lashings!$K$15) -> 0.8
O128: µ | P128: =P110 -> Forward | X128: 0.35 | Y128: =IF(COUNT(Y38,Y56,Y74,Y92,Y110)>0,MIN(Y38,Y56,Y74,Y92,Y110),Lashings!$K$15) -> 0.7333333333 | Z128: =IF(COUNT(Z38,Z56,Z74,Z92,Z110)>0,MIN(Z38,Z56,Z74,Z92,Z110),Lashings!$K$15) -> 1.066666667 | AA128: =IF(COUNT(AA38,AA56,AA74,AA92,AA110)>0,MIN(AA38,AA56,AA74,AA92,AA110),Lashings!$K$15) -> 0.2444444444 | AB128: =IF(COUNT(AB38,AB56,AB74,AB92,AB110)>0,MIN(AB38,AB56,AB74,AB92,AB110),Lashings!$K$15) -> 0.3555555556 | AC128: =IF(COUNT(AC38,AC56,AC74,AC92,AC110)>0,MIN(AC38,AC56,AC74,AC92,AC110),Lashings!$K$15) -> 0.7333333333 | AD128: =IF(COUNT(AD38,AD56,AD74,AD92,AD110)>0,MIN(AD38,AD56,AD74,AD92,AD110),Lashings!$K$15) -> 1.066666667
O129: 0.2 | P129: =IF(COUNT(P39,P57,P75,P93,P111)>0,MIN(P39,P57,P75,P93,P111),Lashings!$K$15) -> 0.2083333333 | Q129: =IF(COUNT(Q39,Q57,Q75,Q93,Q111)>0,MIN(Q39,Q57,Q75,Q93,Q111),Lashings!$K$15) -> 0.2916666667 | R129: =IF(COUNT(R39,R57,R75,R93,R111)>0,MIN(R39,R57,R75,R93,R111),Lashings!$K$15) -> 0.375 | S129: =IF(COUNT(S39,S57,S75,S93,S111)>0,MIN(S39,S57,S75,S93,S111),Lashings!$K$15) -> 0.5 | T129: =IF(COUNT(T39,T57,T75,T93,T111)>0,MIN(T39,T57,T75,T93,T111),Lashings!$K$15) -> 0.2083333333 | U129: =IF(COUNT(U39,U57,U75,U93,U111)>0,MIN(U39,U57,U75,U93,U111),Lashings!$K$15) -> 0.2916666667 | V129: =IF(COUNT(V39,V57,V75,V93,V111)>0,MIN(V39,V57,V75,V93,V111),Lashings!$K$15) -> 0.625 | X129: 0.4 | Y129: =IF(COUNT(Y39,Y57,Y75,Y93,Y111)>0,MIN(Y39,Y57,Y75,Y93,Y111),Lashings!$K$15) -> 1.1 | Z129: =IF(COUNT(Z39,Z57,Z75,Z93,Z111)>0,MIN(Z39,Z57,Z75,Z93,Z111),Lashings!$K$15) -> 1.6 | AA129: =IF(COUNT(AA39,AA57,AA75,AA93,AA111)>0,MIN(AA39,AA57,AA75,AA93,AA111),Lashings!$K$15) -> 0.275 | AB129: =IF(COUNT(AB39,AB57,AB75,AB93,AB111)>0,MIN(AB39,AB57,AB75,AB93,AB111),Lashings!$K$15) -> 0.4 | AC129: =IF(COUNT(AC39,AC57,AC75,AC93,AC111)>0,MIN(AC39,AC57,AC75,AC93,AC111),Lashings!$K$15) -> 1.1 | AD129: =IF(COUNT(AD39,AD57,AD75,AD93,AD111)>0,MIN(AD39,AD57,AD75,AD93,AD111),Lashings!$K$15) -> 1.6
O130: 0.3 | P130: =IF(COUNT(P40,P58,P76,P94,P112)>0,MIN(P40,P58,P76,P94,P112),Lashings!$K$15) -> 0.25 | Q130: =IF(COUNT(Q40,Q58,Q76,Q94,Q112)>0,MIN(Q40,Q58,Q76,Q94,Q112),Lashings!$K$15) -> 0.35 | R130: =IF(COUNT(R40,R58,R76,R94,R112)>0,MIN(R40,R58,R76,R94,R112),Lashings!$K$15) -> 0.45 | S130: =IF(COUNT(S40,S58,S76,S94,S112)>0,MIN(S40,S58,S76,S94,S112),Lashings!$K$15) -> 0.6 | T130: =IF(COUNT(T40,T58,T76,T94,T112)>0,MIN(T40,T58,T76,T94,T112),Lashings!$K$15) -> 0.25 | U130: =IF(COUNT(U40,U58,U76,U94,U112)>0,MIN(U40,U58,U76,U94,U112),Lashings!$K$15) -> 0.35 | V130: =IF(COUNT(V40,V58,V76,V94,V112)>0,MIN(V40,V58,V76,V94,V112),Lashings!$K$15) -> 0.75 | X130: 0.45 | Y130: =IF(COUNT(Y40,Y58,Y76,Y94,Y112)>0,MIN(Y40,Y58,Y76,Y94,Y112),Lashings!$K$15) -> 2.2 | Z130: =IF(COUNT(Z40,Z58,Z76,Z94,Z112)>0,MIN(Z40,Z58,Z76,Z94,Z112),Lashings!$K$15) -> 3.2 | AA130: =IF(COUNT(AA40,AA58,AA76,AA94,AA112)>0,MIN(AA40,AA58,AA76,AA94,AA112),Lashings!$K$15) -> 0.3142857143 | AB130: =IF(COUNT(AB40,AB58,AB76,AB94,AB112)>0,MIN(AB40,AB58,AB76,AB94,AB112),Lashings!$K$15) -> 0.4571428571 | AC130: =IF(COUNT(AC40,AC58,AC76,AC94,AC112)>0,MIN(AC40,AC58,AC76,AC94,AC112),Lashings!$K$15) -> 2.2 | AD130: =IF(COUNT(AD40,AD58,AD76,AD94,AD112)>0,MIN(AD40,AD58,AD76,AD94,AD112),Lashings!$K$15) -> 3.2
O131: 0.4 | P131: =IF(COUNT(P41,P59,P77,P95,P113)>0,MIN(P41,P59,P77,P95,P113),Lashings!$K$15) -> 0.3125 | Q131: =IF(COUNT(Q41,Q59,Q77,Q95,Q113)>0,MIN(Q41,Q59,Q77,Q95,Q113),Lashings!$K$15) -> 0.4375 | R131: =IF(COUNT(R41,R59,R77,R95,R113)>0,MIN(R41,R59,R77,R95,R113),Lashings!$K$15) -> 0.5625 | S131: =IF(COUNT(S41,S59,S77,S95,S113)>0,MIN(S41,S59,S77,S95,S113),Lashings!$K$15) -> 0.75 | T131: =IF(COUNT(T41,T59,T77,T95,T113)>0,MIN(T41,T59,T77,T95,T113),Lashings!$K$15) -> 0.3125 | U131: =IF(COUNT(U41,U59,U77,U95,U113)>0,MIN(U41,U59,U77,U95,U113),Lashings!$K$15) -> 0.4375 | V131: =IF(COUNT(V41,V59,V77,V95,V113)>0,MIN(V41,V59,V77,V95,V113),Lashings!$K$15) -> 0.9375 | X131: 0.5 | Y131: =IF(COUNT(Y41,Y59,Y77,Y95,Y113)>0,MIN(Y41,Y59,Y77,Y95,Y113),Lashings!$K$15) -> no slide | Z131: =IF(COUNT(Z41,Z59,Z77,Z95,Z113)>0,MIN(Z41,Z59,Z77,Z95,Z113),Lashings!$K$15) -> no slide | AA131: =IF(COUNT(AA41,AA59,AA77,AA95,AA113)>0,MIN(AA41,AA59,AA77,AA95,AA113),Lashings!$K$15) -> 0.3666666667 | AB131: =IF(COUNT(AB41,AB59,AB77,AB95,AB113)>0,MIN(AB41,AB59,AB77,AB95,AB113),Lashings!$K$15) -> 0.5333333333 | AC131: =IF(COUNT(AC41,AC59,AC77,AC95,AC113)>0,MIN(AC41,AC59,AC77,AC95,AC113),Lashings!$K$15) -> no slide | AD131: =IF(COUNT(AD41,AD59,AD77,AD95,AD113)>0,MIN(AD41,AD59,AD77,AD95,AD113),Lashings!$K$15) -> no slide
X132: 0.55 | Y132: =IF(COUNT(Y42,Y60,Y78,Y96,Y114)>0,MIN(Y42,Y60,Y78,Y96,Y114),Lashings!$K$15) -> no slide | Z132: =IF(COUNT(Z42,Z60,Z78,Z96,Z114)>0,MIN(Z42,Z60,Z78,Z96,Z114),Lashings!$K$15) -> no slide | AA132: =IF(COUNT(AA42,AA60,AA78,AA96,AA114)>0,MIN(AA42,AA60,AA78,AA96,AA114),Lashings!$K$15) -> 0.44 | AB132: =IF(COUNT(AB42,AB60,AB78,AB96,AB114)>0,MIN(AB42,AB60,AB78,AB96,AB114),Lashings!$K$15) -> 0.64 | AC132: =IF(COUNT(AC42,AC60,AC78,AC96,AC114)>0,MIN(AC42,AC60,AC78,AC96,AC114),Lashings!$K$15) -> no slide | AD132: =IF(COUNT(AD42,AD60,AD78,AD96,AD114)>0,MIN(AD42,AD60,AD78,AD96,AD114),Lashings!$K$15) -> no slide
O133: µ | P133: =P115 -> Rearwards | X133: 0.6 | Y133: =IF(COUNT(Y43,Y61,Y79,Y97,Y115)>0,MIN(Y43,Y61,Y79,Y97,Y115),Lashings!$K$15) -> no slide | Z133: =IF(COUNT(Z43,Z61,Z79,Z97,Z115)>0,MIN(Z43,Z61,Z79,Z97,Z115),Lashings!$K$15) -> no slide | AA133: =IF(COUNT(AA43,AA61,AA79,AA97,AA115)>0,MIN(AA43,AA61,AA79,AA97,AA115),Lashings!$K$15) -> 0.55 | AB133: =IF(COUNT(AB43,AB61,AB79,AB97,AB115)>0,MIN(AB43,AB61,AB79,AB97,AB115),Lashings!$K$15) -> 0.8 | AC133: =IF(COUNT(AC43,AC61,AC79,AC97,AC115)>0,MIN(AC43,AC61,AC79,AC97,AC115),Lashings!$K$15) -> no slide | AD133: =IF(COUNT(AD43,AD61,AD79,AD97,AD115)>0,MIN(AD43,AD61,AD79,AD97,AD115),Lashings!$K$15) -> no slide
O134: 0.2 | P134: =IF(COUNT(P44,P62,P80,P98,P116)>0,MIN(P44,P62,P80,P98,P116),Lashings!$K$15) -> 0.4166666667 | Q134: =IF(COUNT(Q44,Q62,Q80,Q98,Q116)>0,MIN(Q44,Q62,Q80,Q98,Q116),Lashings!$K$15) -> 0.5833333333 | R134: =IF(COUNT(R44,R62,R80,R98,R116)>0,MIN(R44,R62,R80,R98,R116),Lashings!$K$15) -> 0.75 | S134: =IF(COUNT(S44,S62,S80,S98,S116)>0,MIN(S44,S62,S80,S98,S116),Lashings!$K$15) -> 1 | T134: =IF(COUNT(T44,T62,T80,T98,T116)>0,MIN(T44,T62,T80,T98,T116),Lashings!$K$15) -> 0.4166666667 | U134: =IF(COUNT(U44,U62,U80,U98,U116)>0,MIN(U44,U62,U80,U98,U116),Lashings!$K$15) -> 0.5833333333 | V134: =IF(COUNT(V44,V62,V80,V98,V116)>0,MIN(V44,V62,V80,V98,V116),Lashings!$K$15) -> 1.25 | X134: 0.65 | Y134: =IF(COUNT(Y44,Y62,Y80,Y98,Y116)>0,MIN(Y44,Y62,Y80,Y98,Y116),Lashings!$K$15) -> no slide | Z134: =IF(COUNT(Z44,Z62,Z80,Z98,Z116)>0,MIN(Z44,Z62,Z80,Z98,Z116),Lashings!$K$15) -> no slide | AA134: =IF(COUNT(AA44,AA62,AA80,AA98,AA116)>0,MIN(AA44,AA62,AA80,AA98,AA116),Lashings!$K$15) -> 0.7333333333 | AB134: =IF(COUNT(AB44,AB62,AB80,AB98,AB116)>0,MIN(AB44,AB62,AB80,AB98,AB116),Lashings!$K$15) -> 1.066666667 | AC134: =IF(COUNT(AC44,AC62,AC80,AC98,AC116)>0,MIN(AC44,AC62,AC80,AC98,AC116),Lashings!$K$15) -> no slide | AD134: =IF(COUNT(AD44,AD62,AD80,AD98,AD116)>0,MIN(AD44,AD62,AD80,AD98,AD116),Lashings!$K$15) -> no slide
O135: 0.3 | P135: =IF(COUNT(P45,P63,P81,P99,P117)>0,MIN(P45,P63,P81,P99,P117),Lashings!$K$15) -> 0.625 | Q135: =IF(COUNT(Q45,Q63,Q81,Q99,Q117)>0,MIN(Q45,Q63,Q81,Q99,Q117),Lashings!$K$15) -> 0.875 | R135: =IF(COUNT(R45,R63,R81,R99,R117)>0,MIN(R45,R63,R81,R99,R117),Lashings!$K$15) -> 1.125 | S135: =IF(COUNT(S45,S63,S81,S99,S117)>0,MIN(S45,S63,S81,S99,S117),Lashings!$K$15) -> 1.5 | T135: =IF(COUNT(T45,T63,T81,T99,T117)>0,MIN(T45,T63,T81,T99,T117),Lashings!$K$15) -> 0.625 | U135: =IF(COUNT(U45,U63,U81,U99,U117)>0,MIN(U45,U63,U81,U99,U117),Lashings!$K$15) -> 0.875 | V135: =IF(COUNT(V45,V63,V81,V99,V117)>0,MIN(V45,V63,V81,V99,V117),Lashings!$K$15) -> 1.875 | X135: 0.7 | Y135: =IF(COUNT(Y45,Y63,Y81,Y99,Y117)>0,MIN(Y45,Y63,Y81,Y99,Y117),Lashings!$K$15) -> no slide | Z135: =IF(COUNT(Z45,Z63,Z81,Z99,Z117)>0,MIN(Z45,Z63,Z81,Z99,Z117),Lashings!$K$15) -> no slide | AA135: =IF(COUNT(AA45,AA63,AA81,AA99,AA117)>0,MIN(AA45,AA63,AA81,AA99,AA117),Lashings!$K$15) -> 1.1 | AB135: =IF(COUNT(AB45,AB63,AB81,AB99,AB117)>0,MIN(AB45,AB63,AB81,AB99,AB117),Lashings!$K$15) -> 1.6 | AC135: =IF(COUNT(AC45,AC63,AC81,AC99,AC117)>0,MIN(AC45,AC63,AC81,AC99,AC117),Lashings!$K$15) -> no slide | AD135: =IF(COUNT(AD45,AD63,AD81,AD99,AD117)>0,MIN(AD45,AD63,AD81,AD99,AD117),Lashings!$K$15) -> no slide
O136: 0.4 | P136: =IF(COUNT(P46,P64,P82,P100,P118)>0,MIN(P46,P64,P82,P100,P118),Lashings!$K$15) -> 1.25 | Q136: =IF(COUNT(Q46,Q64,Q82,Q100,Q118)>0,MIN(Q46,Q64,Q82,Q100,Q118),Lashings!$K$15) -> 1.75 | R136: =IF(COUNT(R46,R64,R82,R100,R118)>0,MIN(R46,R64,R82,R100,R118),Lashings!$K$15) -> 2.25 | S136: =IF(COUNT(S46,S64,S82,S100,S118)>0,MIN(S46,S64,S82,S100,S118),Lashings!$K$15) -> 3 | T136: =IF(COUNT(T46,T64,T82,T100,T118)>0,MIN(T46,T64,T82,T100,T118),Lashings!$K$15) -> 1.25 | U136: =IF(COUNT(U46,U64,U82,U100,U118)>0,MIN(U46,U64,U82,U100,U118),Lashings!$K$15) -> 1.75 | V136: =IF(COUNT(V46,V64,V82,V100,V118)>0,MIN(V46,V64,V82,V100,V118),Lashings!$K$15) -> 3.75 | X136: 0.75 | Y136: =IF(COUNT(Y46,Y64,Y82,Y100,Y118)>0,MIN(Y46,Y64,Y82,Y100,Y118),Lashings!$K$15) -> no slide | Z136: =IF(COUNT(Z46,Z64,Z82,Z100,Z118)>0,MIN(Z46,Z64,Z82,Z100,Z118),Lashings!$K$15) -> no slide | AA136: =IF(COUNT(AA46,AA64,AA82,AA100,AA118)>0,MIN(AA46,AA64,AA82,AA100,AA118),Lashings!$K$15) -> 2.2 | AB136: =IF(COUNT(AB46,AB64,AB82,AB100,AB118)>0,MIN(AB46,AB64,AB82,AB100,AB118),Lashings!$K$15) -> 3.2 | AC136: =IF(COUNT(AC46,AC64,AC82,AC100,AC118)>0,MIN(AC46,AC64,AC82,AC100,AC118),Lashings!$K$15) -> no slide | AD136: =IF(COUNT(AD46,AD64,AD82,AD100,AD118)>0,MIN(AD46,AD64,AD82,AD100,AD118),Lashings!$K$15) -> no slide
X137: 0.8 | Y137: =IF(COUNT(Y47,Y65,Y83,Y101,Y119)>0,MIN(Y47,Y65,Y83,Y101,Y119),Lashings!$K$15) -> no slide | Z137: =IF(COUNT(Z47,Z65,Z83,Z101,Z119)>0,MIN(Z47,Z65,Z83,Z101,Z119),Lashings!$K$15) -> no slide | AA137: =IF(COUNT(AA47,AA65,AA83,AA101,AA119)>0,MIN(AA47,AA65,AA83,AA101,AA119),Lashings!$K$15) -> no slide | AB137: =IF(COUNT(AB47,AB65,AB83,AB101,AB119)>0,MIN(AB47,AB65,AB83,AB101,AB119),Lashings!$K$15) -> no slide | AC137: =IF(COUNT(AC47,AC65,AC83,AC101,AC119)>0,MIN(AC47,AC65,AC83,AC101,AC119),Lashings!$K$15) -> no slide | AD137: =IF(COUNT(AD47,AD65,AD83,AD101,AD119)>0,MIN(AD47,AD65,AD83,AD101,AD119),Lashings!$K$15) -> no slide
O139: Decimals | X139: Decimals
Y140: =$Y$7 -> Sideways | AA140: =$AA$7 -> Forward | AC140: =$AC$7 -> Rearwards
O141: µ | P141: =P123 -> Sideways | X141: µ | Y141: =Y$8 -> Smooth | Z141: =Z$8 -> Galvanized | AA141: Smooth | AB141: Galvanized | AC141: Smooth | AD141: Galvanized
O142: 0.2 | P142: =IF(TYPE(P124)=2,-1,IF(P124>10,0,IF(P124>1,1,2))) -> 2 | Q142: =IF(TYPE(Q124)=2,-1,IF(Q124>10,0,IF(Q124>1,1,2))) -> 2 | R142: 2 | S142: 2 | T142: 2 | U142: 2 | V142: 1 | X142: 0.15 | Y142: =IF(TYPE(Y124)=2,-1,IF(Y124>10,0,IF(Y124>1,1,2))) -> 2 | Z142: =IF(TYPE(Z124)=2,-1,IF(Z124>10,0,IF(Z124>1,1,2))) -> 2 | AA142: 2 | AB142: 2 | AC142: 2 | AD142: 2
O143: 0.3 | P143: =IF(TYPE(P125)=2,-1,IF(P125>10,0,IF(P125>1,1,2))) -> 2 | Q143: =IF(TYPE(Q125)=2,-1,IF(Q125>10,0,IF(Q125>1,1,2))) -> 2 | R143: 1 | S143: 1 | T143: 2 | U143: 2 | V143: 1 | X143: 0.2 | Y143: =IF(TYPE(Y125)=2,-1,IF(Y125>10,0,IF(Y125>1,1,2))) -> 2 | Z143: 2 | AA143: 2 | AB143: 2 | AC143: 2 | AD143: 2
O144: 0.4 | P144: =IF(TYPE(P126)=2,-1,IF(P126>10,0,IF(P126>1,1,2))) -> 1 | Q144: 1 | R144: 1 | S144: 1 | T144: 1 | U144: 1 | V144: 1 | X144: 0.25 | Y144: 2 | Z144: 2 | AA144: 2 | AB144: 2 | AC144: 2 | AD144: 2
X145: 0.3 | Y145: 2 | Z145: 2 | AA145: 2 | AB145: 2 | AC145: 2 | AD145: 2
O146: µ | P146: =P128 -> Forward | X146: 0.35 | Y146: 2 | Z146: 1 | AA146: 2 | AB146: 2 | AC146: 2 | AD146: 1
O147: 0.2 | P147: =IF(TYPE(P129)=2,-1,IF(P129>10,0,IF(P129>1,1,2))) -> 2 | Q147: =IF(TYPE(Q129)=2,-1,IF(Q129>10,0,IF(Q129>1,1,2))) -> 2 | R147: 2 | S147: 2 | T147: 2 | U147: 2 | V147: 2 | X147: 0.4 | Y147: 1 | Z147: 1 | AA147: 2 | AB147: 2 | AC147: 1 | AD147: 1
O148: 0.3 | P148: =IF(TYPE(P130)=2,-1,IF(P130>10,0,IF(P130>1,1,2))) -> 2 | Q148: 2 | R148: 2 | S148: 2 | T148: 2 | U148: 2 | V148: 2 | X148: 0.45 | Y148: 1 | Z148: 1 | AA148: 2 | AB148: 2 | AC148: 1 | AD148: 1
O149: 0.4 | P149: =IF(TYPE(P131)=2,-1,IF(P131>10,0,IF(P131>1,1,2))) -> 2 | Q149: 2 | R149: 2 | S149: 2 | T149: 2 | U149: 2 | V149: 2 | X149: 0.5 | Y149: -1 | Z149: -1 | AA149: 2 | AB149: 2 | AC149: -1 | AD149: -1
X150: 0.55 | Y150: -1 | Z150: -1 | AA150: 2 | AB150: 2 | AC150: -1 | AD150: -1
O151: µ | P151: =P133 -> Rearwards | X151: 0.6 | Y151: -1 | Z151: -1 | AA151: 2 | AB151: 2 | AC151: -1 | AD151: -1
O152: 0.2 | P152: =IF(TYPE(P134)=2,-1,IF(P134>10,0,IF(P134>1,1,2))) -> 2 | Q152: =IF(TYPE(Q134)=2,-1,IF(Q134>10,0,IF(Q134>1,1,2))) -> 2 | R152: 2 | S152: 2 | T152: 2 | U152: 2 | V152: 1 | X152: 0.65 | Y152: -1 | Z152: -1 | AA152: 2 | AB152: 1 | AC152: -1 | AD152: -1
O153: 0.3 | P153: =IF(TYPE(P135)=2,-1,IF(P135>10,0,IF(P135>1,1,2))) -> 2 | Q153: 2 | R153: 1 | S153: 1 | T153: 2 | U153: 2 | V153: 1 | X153: 0.7 | Y153: -1 | Z153: -1 | AA153: 1 | AB153: 1 | AC153: -1 | AD153: -1
O154: 0.4 | P154: =IF(TYPE(P136)=2,-1,IF(P136>10,0,IF(P136>1,1,2))) -> 1 | Q154: 1 | R154: 1 | S154: 1 | T154: 1 | U154: 1 | V154: 1 | X154: 0.75 | Y154: -1 | Z154: -1 | AA154: 1 | AB154: 1 | AC154: -1 | AD154: -1
X155: 0.8 | Y155: -1 | Z155: -1 | AA155: -1 | AB155: -1 | AC155: -1 | AD155: -1
O156: The friction factor should be chosen based on the material combination | AE156: Developed by MariTerm AB
O157: for the tag washer and the cargo or the platform.
